Department,Entity,Date of Payment,Expense Type,Expense Area,Supplier,Transaction Number,Amount 
"Department of Business, Innovation and Skills","Department of Business, Innovation and Skills",21/01/2011,Enforcement,Business & Skills Group - Advanced Manufacturing Industries,(SEPA) SCOTTISH ENVIRONMENT PROTECTION AGENCY,1016913,66000
"Department of Business, Innovation and Skills","Department of Business, Innovation and Skills",27/01/2011,Communications & Marketing Training,"Legal, People & Communications Group - Communications Directorate",21ST CENTURY NEW MEDIA LTD,1017584,1615
"Department of Business, Innovation and Skills","Department of Business, Innovation and Skills",18/01/2011,Legal Costs,Office of Manpower Economics - Office of Manpower Economics,23 ESSEX STREET,1016573,2867.5
"Department of Business, Innovation and Skills","Department of Business, Innovation and Skills",12/01/2011,Independent Experts,Business & Skills Group - Advanced Manufacturing Industries,A C DICKER T/A GLEVERS,1016132,4166.66
"Department of Business, Innovation and Skills","Department of Business, Innovation and Skills",28/01/2011,Independent Experts,Business & Skills Group - Advanced Manufacturing Industries,A C DICKER T/A GLEVERS,1017781,372.4
"Department of Business, Innovation and Skills","Department of Business, Innovation and Skills",28/01/2011,Independent Experts,Business & Skills Group - Advanced Manufacturing Industries,A C DICKER T/A GLEVERS,1017788,4166.66
"Department of Business, Innovation and Skills","Department of Business, Innovation and Skills",25/01/2011,Catering Services,Knowledge and Innovation Group - Higher Education Admin,ABBEY COMMUNITY ASSOCIATION LTD,1017272,1062.2
"Department of Business, Innovation and Skills","Department of Business, Innovation and Skills",25/01/2011,Hire of Conference Facilities,Knowledge and Innovation Group - Higher Education Admin,ABBEY COMMUNITY ASSOCIATION LTD,1017272,2954
"Department of Business, Innovation and Skills","Department of Business, Innovation and Skills",25/01/2011,Hire of Conference Facilities,Knowledge and Innovation Group - Higher Education Admin,ABBEY COMMUNITY ASSOCIATION LTD,1017272,303.74
"Department of Business, Innovation and Skills","Department of Business, Innovation and Skills",07/01/2011,Other Staff Welfare Costs,"Legal, People & Communications Group - HRCM - Human Resources and Change Management Directorate",ABILITYNET,1015683,3439.24
"Department of Business, Innovation and Skills","Department of Business, Innovation and Skills",20/01/2011,Leadership & People Management Training,"Legal, People & Communications Group - HRCM - Human Resources and Change Management Directorate",ACAS,1016767,160
"Department of Business, Innovation and Skills","Department of Business, Innovation and Skills",04/01/2011,Non-Grant in Aid Funding of Bodies (Departmental and Non-Departmental),Market and Frameworks Group - Employment Relations,ACAS,1015139,4000000
"Department of Business, Innovation and Skills","Department of Business, Innovation and Skills",06/01/2011,InfoSource Desktop Information and Research Services,Finance & Commercial Group - Information and Workplace Strategies,ACKNOWLEDGE LTD,1015526,900
"Department of Business, Innovation and Skills","Department of Business, Innovation and Skills",06/01/2011,InfoSource Desktop Information and Research Services,Finance & Commercial Group - Information and Workplace Strategies,ACKNOWLEDGE LTD,1015528,900
"Department of Business, Innovation and Skills","Department of Business, Innovation and Skills",26/01/2011,Business Continuity Planning Service,Finance & Commercial Group - Information and Workplace Strategies,ADAM PHONES LTD,1016974,208.8
"Department of Business, Innovation and Skills","Department of Business, Innovation and Skills",24/01/2011,Media and Design Services,Knowledge and Innovation Group - Learners,ADDISON CORPORATE MARKETING LTD,1017043,17729.5
"Department of Business, Innovation and Skills","Department of Business, Innovation and Skills",07/01/2011,Taxis,"Legal, People & Communications Group - Communications Directorate",ADDISON LEE plc,1015671,122.4
"Department of Business, Innovation and Skills","Department of Business, Innovation and Skills",11/01/2011,Car Hire and Leasing,Ministerial and Parliamentary Support Team - Ministerial and Parliamentary Support Team,ADDISON LEE plc,1015918,15.75
"Department of Business, Innovation and Skills","Department of Business, Innovation and Skills",11/01/2011,Car Hire and Leasing,Ministerial and Parliamentary Support Team - Ministerial and Parliamentary Support Team,ADDISON LEE plc,1015918,146.68
"Department of Business, Innovation and Skills","Department of Business, Innovation and Skills",11/01/2011,Car Hire and Leasing,Ministerial and Parliamentary Support Team - Ministerial and Parliamentary Support Team,ADDISON LEE plc,1015918,23.7
"Department of Business, Innovation and Skills","Department of Business, Innovation and Skills",11/01/2011,Car Hire and Leasing,Ministerial and Parliamentary Support Team - Ministerial and Parliamentary Support Team,ADDISON LEE plc,1015918,48.58
"Department of Business, Innovation and Skills","Department of Business, Innovation and Skills",11/01/2011,Car Hire and Leasing,Ministerial and Parliamentary Support Team - Ministerial and Parliamentary Support Team,ADDISON LEE plc,1015918,35.55
"Department of Business, Innovation and Skills","Department of Business, Innovation and Skills",11/01/2011,Car Hire and Leasing,Ministerial and Parliamentary Support Team - Ministerial and Parliamentary Support Team,ADDISON LEE plc,1015918,23.7
"Department of Business, Innovation and Skills","Department of Business, Innovation and Skills",11/01/2011,Car Hire and Leasing,Ministerial and Parliamentary Support Team - Ministerial and Parliamentary Support Team,ADDISON LEE plc,1015918,84
"Department of Business, Innovation and Skills","Department of Business, Innovation and Skills",05/01/2011,Hire of Agency Staff (Clerical/Secretariat/Other),Business & Skills Group - Advanced Manufacturing Industries,ADECCO UK LTD,1015108,680.1
"Department of Business, Innovation and Skills","Department of Business, Innovation and Skills",05/01/2011,Hire of Agency Staff (Clerical/Secretariat/Other),Business & Skills Group - Advanced Manufacturing Industries,ADECCO UK LTD,1015109,559.42
"Department of Business, Innovation and Skills","Department of Business, Innovation and Skills",06/01/2011,Hire of Agency Staff (Clerical/Secretariat/Other),Business & Skills Group - Advanced Manufacturing Industries,ADECCO UK LTD,1015425,423.16
"Department of Business, Innovation and Skills","Department of Business, Innovation and Skills",13/01/2011,Hire of Agency Staff (Clerical/Secretariat/Other),Business & Skills Group - Advanced Manufacturing Industries,ADECCO UK LTD,1016227,224.67
"Department of Business, Innovation and Skills","Department of Business, Innovation and Skills",13/01/2011,Hire of Agency Staff (Clerical/Secretariat/Other),Business & Skills Group - Advanced Manufacturing Industries,ADECCO UK LTD,1016228,609.25
"Department of Business, Innovation and Skills","Department of Business, Innovation and Skills",13/01/2011,Hire of Agency Staff (Clerical/Secretariat/Other),Business & Skills Group - Advanced Manufacturing Industries,ADECCO UK LTD,1016229,559.42
"Department of Business, Innovation and Skills","Department of Business, Innovation and Skills",13/01/2011,Hire of Agency Staff (Clerical/Secretariat/Other),Business & Skills Group - Advanced Manufacturing Industries,ADECCO UK LTD,1016231,580.19
"Department of Business, Innovation and Skills","Department of Business, Innovation and Skills",13/01/2011,Hire of Agency Staff (Clerical/Secretariat/Other),Business & Skills Group - Advanced Manufacturing Industries,ADECCO UK LTD,1016237,418.89
"Department of Business, Innovation and Skills","Department of Business, Innovation and Skills",13/01/2011,Hire of Agency Staff (Clerical/Secretariat/Other),Business & Skills Group - Advanced Manufacturing Industries,ADECCO UK LTD,1016238,544.14
"Department of Business, Innovation and Skills","Department of Business, Innovation and Skills",13/01/2011,Hire of Agency Staff (Clerical/Secretariat/Other),Business & Skills Group - Advanced Manufacturing Industries,ADECCO UK LTD,1016240,680.1
"Department of Business, Innovation and Skills","Department of Business, Innovation and Skills",13/01/2011,Hire of Agency Staff (Clerical/Secretariat/Other),Business & Skills Group - Advanced Manufacturing Industries,ADECCO UK LTD,1016242,270.32
"Department of Business, Innovation and Skills","Department of Business, Innovation and Skills",13/01/2011,Hire of Agency Staff (Clerical/Secretariat/Other),Business & Skills Group - Advanced Manufacturing Industries,ADECCO UK LTD,1016243,540.48
"Department of Business, Innovation and Skills","Department of Business, Innovation and Skills",13/01/2011,Hire of Agency Staff (Clerical/Secretariat/Other),Business & Skills Group - Advanced Manufacturing Industries,ADECCO UK LTD,1016247,133.52
"Department of Business, Innovation and Skills","Department of Business, Innovation and Skills",18/01/2011,Hire of Agency Staff (Clerical/Secretariat/Other),Business & Skills Group - Advanced Manufacturing Industries,ADECCO UK LTD,1016602,453.12
"Department of Business, Innovation and Skills","Department of Business, Innovation and Skills",19/01/2011,Hire of Agency Staff (Clerical/Secretariat/Other),Business & Skills Group - Advanced Manufacturing Industries,ADECCO UK LTD,1016605,551.98
"Department of Business, Innovation and Skills","Department of Business, Innovation and Skills",27/01/2011,Hire of Agency Staff (Clerical/Secretariat/Other),Business & Skills Group - Advanced Manufacturing Industries,ADECCO UK LTD,1017556,694.57
"Department of Business, Innovation and Skills","Department of Business, Innovation and Skills",27/01/2011,Hire of Agency Staff (Clerical/Secretariat/Other),Business & Skills Group - Advanced Manufacturing Industries,ADECCO UK LTD,1017558,574.8
"Department of Business, Innovation and Skills","Department of Business, Innovation and Skills",05/01/2011,Hire of Agency Staff (Clerical/Secretariat/Other),Business & Skills Group - Enterprise Directorate,ADECCO UK LTD,1015154,690.99
"Department of Business, Innovation and Skills","Department of Business, Innovation and Skills",19/01/2011,Hire of Agency Staff (Clerical/Secretariat/Other),Business & Skills Group - Enterprise Directorate,ADECCO UK LTD,1016610,697.31
"Department of Business, Innovation and Skills","Department of Business, Innovation and Skills",25/01/2011,Hire of Agency Staff (Clerical/Secretariat/Other),Business & Skills Group - Enterprise Directorate,ADECCO UK LTD,1017083,491.64
"Department of Business, Innovation and Skills","Department of Business, Innovation and Skills",27/01/2011,Hire of Agency Staff (Clerical/Secretariat/Other),Business & Skills Group - Enterprise Directorate,ADECCO UK LTD,1017084,361.45
"Department of Business, Innovation and Skills","Department of Business, Innovation and Skills",25/01/2011,Hire of Agency Staff (Clerical/Secretariat/Other),Business & Skills Group - Enterprise Directorate,ADECCO UK LTD,1017194,918.3
"Department of Business, Innovation and Skills","Department of Business, Innovation and Skills",31/01/2011,Hire of Agency Staff (Clerical/Secretariat/Other),Business & Skills Group - Enterprise Directorate,ADECCO UK LTD,1017196,550.44
"Department of Business, Innovation and Skills","Department of Business, Innovation and Skills",27/01/2011,Hire of Agency Staff (Clerical/Secretariat/Other),Business & Skills Group - Enterprise Directorate,ADECCO UK LTD,1017587,557.21
"Department of Business, Innovation and Skills","Department of Business, Innovation and Skills",27/01/2011,Hire of Agency Staff (Clerical/Secretariat/Other),Business & Skills Group - Enterprise Directorate,ADECCO UK LTD,1017588,932.12
"Department of Business, Innovation and Skills","Department of Business, Innovation and Skills",25/01/2011,Hire of Agency Staff (Clerical/Secretariat/Other),Chief Economic Advisor &BRE Group - Better Regulation Executive (BRE),ADECCO UK LTD,1013284,-166.73
"Department of Business, Innovation and Skills","Department of Business, Innovation and Skills",25/01/2011,Hire of Agency Staff (Clerical/Secretariat/Other),Chief Economic Advisor &BRE Group - Better Regulation Executive (BRE),ADECCO UK LTD,1017116,722.67
"Department of Business, Innovation and Skills","Department of Business, Innovation and Skills",26/01/2011,Hire of Agency Staff (Clerical/Secretariat/Other),Chief Economic Advisor &BRE Group - Better Regulation Executive (BRE),ADECCO UK LTD,1017500,795.55
"Department of Business, Innovation and Skills","Department of Business, Innovation and Skills",26/01/2011,Hire of Agency Staff (Clerical/Secretariat/Other),Chief Economic Advisor &BRE Group - Better Regulation Executive (BRE),ADECCO UK LTD,1017501,805.96
"Department of Business, Innovation and Skills","Department of Business, Innovation and Skills",05/01/2011,Hire of Agency Staff (Clerical/Secretariat/Other),"Legal, People & Communications Group - Communications Directorate",ADECCO UK LTD,1015420,201.22
"Department of Business, Innovation and Skills","Department of Business, Innovation and Skills",05/01/2011,Hire of Agency Staff (Clerical/Secretariat/Other),"Legal, People & Communications Group - Communications Directorate",ADECCO UK LTD,1015420,187.84
"Department of Business, Innovation and Skills","Department of Business, Innovation and Skills",05/01/2011,Hire of Agency Staff (Clerical/Secretariat/Other),"Legal, People & Communications Group - Communications Directorate",ADECCO UK LTD,1015420,148.79
"Department of Business, Innovation and Skills","Department of Business, Innovation and Skills",05/01/2011,Hire of Agency Staff (Clerical/Secretariat/Other),"Legal, People & Communications Group - Communications Directorate",ADECCO UK LTD,1015424,167.16
"Department of Business, Innovation and Skills","Department of Business, Innovation and Skills",05/01/2011,Hire of Agency Staff (Clerical/Secretariat/Other),"Legal, People & Communications Group - Communications Directorate",ADECCO UK LTD,1015424,136.84
"Department of Business, Innovation and Skills","Department of Business, Innovation and Skills",05/01/2011,Hire of Agency Staff (Clerical/Secretariat/Other),"Legal, People & Communications Group - Communications Directorate",ADECCO UK LTD,1015424,235.29
"Department of Business, Innovation and Skills","Department of Business, Innovation and Skills",18/01/2011,Hire of Agency Staff (Clerical/Secretariat/Other),"Legal, People & Communications Group - Communications Directorate",ADECCO UK LTD,1016604,552.95
"Department of Business, Innovation and Skills","Department of Business, Innovation and Skills",18/01/2011,Hire of Agency Staff (Clerical/Secretariat/Other),"Legal, People & Communications Group - Communications Directorate",ADECCO UK LTD,1016606,487.33
"Department of Business, Innovation and Skills","Department of Business, Innovation and Skills",24/01/2011,Hire of Agency Staff (Clerical/Secretariat/Other),"Legal, People & Communications Group - Communications Directorate",ADECCO UK LTD,1017060,596.52
"Department of Business, Innovation and Skills","Department of Business, Innovation and Skills",24/01/2011,Hire of Agency Staff (Clerical/Secretariat/Other),"Legal, People & Communications Group - Communications Directorate",ADECCO UK LTD,1017104,504.84
"Department of Business, Innovation and Skills","Department of Business, Innovation and Skills",25/01/2011,Hire of Agency Staff (Clerical/Secretariat/Other),"Legal, People & Communications Group - Communications Directorate",ADECCO UK LTD,1017109,406.41
"Department of Business, Innovation and Skills","Department of Business, Innovation and Skills",25/01/2011,Hire of Agency Staff (Clerical/Secretariat/Other),"Legal, People & Communications Group - Communications Directorate",ADECCO UK LTD,1017111,406.23
"Department of Business, Innovation and Skills","Department of Business, Innovation and Skills",26/01/2011,Hire of Agency Staff (Clerical/Secretariat/Other),"Legal, People & Communications Group - Communications Directorate",ADECCO UK LTD,1017551,691.01
"Department of Business, Innovation and Skills","Department of Business, Innovation and Skills",27/01/2011,Hire of Agency Staff (Clerical/Secretariat/Other),"Legal, People & Communications Group - Communications Directorate",ADECCO UK LTD,1017554,233.54
"Department of Business, Innovation and Skills","Department of Business, Innovation and Skills",04/01/2011,Hire of Agency Staff (Clerical/Secretariat/Other),"Legal, People & Communications Group - Legal",ADECCO UK LTD,1015133,596.77
"Department of Business, Innovation and Skills","Department of Business, Innovation and Skills",06/01/2011,Hire of Agency Staff (Clerical/Secretariat/Other),"Legal, People & Communications Group - Legal",ADECCO UK LTD,1015492,641
"Department of Business, Innovation and Skills","Department of Business, Innovation and Skills",19/01/2011,Hire of Agency Staff (Clerical/Secretariat/Other),"Legal, People & Communications Group - Legal",ADECCO UK LTD,1016621,622.66
"Department of Business, Innovation and Skills","Department of Business, Innovation and Skills",25/01/2011,Hire of Agency Staff (Clerical/Secretariat/Other),"Legal, People & Communications Group - Legal",ADECCO UK LTD,1017074,290.85
"Department of Business, Innovation and Skills","Department of Business, Innovation and Skills",25/01/2011,Hire of Agency Staff (Clerical/Secretariat/Other),"Legal, People & Communications Group - Legal",ADECCO UK LTD,1017106,458.34
"Department of Business, Innovation and Skills","Department of Business, Innovation and Skills",27/01/2011,Hire of Agency Staff (Clerical/Secretariat/Other),"Legal, People & Communications Group - Legal",ADECCO UK LTD,1017594,662.56
"Department of Business, Innovation and Skills","Department of Business, Innovation and Skills",06/01/2011,Hire of Agency Staff (Clerical/Secretariat/Other),"Legal, People & Communications Group - Priority Projects Drectorate",ADECCO UK LTD,1015110,608.04
"Department of Business, Innovation and Skills","Department of Business, Innovation and Skills",06/01/2011,Hire of Agency Staff (Clerical/Secretariat/Other),"Legal, People & Communications Group - Priority Projects Drectorate",ADECCO UK LTD,1015111,480.48
"Department of Business, Innovation and Skills","Department of Business, Innovation and Skills",06/01/2011,Hire of Agency Staff (Clerical/Secretariat/Other),"Legal, People & Communications Group - Priority Projects Drectorate",ADECCO UK LTD,1015429,217.63
"Department of Business, Innovation and Skills","Department of Business, Innovation and Skills",19/01/2011,Hire of Agency Staff (Clerical/Secretariat/Other),"Legal, People & Communications Group - Priority Projects Drectorate",ADECCO UK LTD,1016601,490.7
"Department of Business, Innovation and Skills","Department of Business, Innovation and Skills",25/01/2011,Hire of Agency Staff (Clerical/Secretariat/Other),"Legal, People & Communications Group - Priority Projects Drectorate",ADECCO UK LTD,1017057,460.08
"Department of Business, Innovation and Skills","Department of Business, Innovation and Skills",27/01/2011,Hire of Agency Staff (Clerical/Secretariat/Other),"Legal, People & Communications Group - Priority Projects Drectorate",ADECCO UK LTD,1017503,463.83
"Department of Business, Innovation and Skills","Department of Business, Innovation and Skills",27/01/2011,Hire of Agency Staff (Clerical/Secretariat/Other),"Legal, People & Communications Group - Priority Projects Drectorate",ADECCO UK LTD,1017504,653.14
"Department of Business, Innovation and Skills","Department of Business, Innovation and Skills",27/01/2011,Hire of Agency Staff (Clerical/Secretariat/Other),"Legal, People & Communications Group - Priority Projects Drectorate",ADECCO UK LTD,1017583,629.09
"Department of Business, Innovation and Skills","Department of Business, Innovation and Skills",05/01/2011,Hire of Agency Staff (Clerical/Secretariat/Other),Ministerial and Parliamentary Support Team - Ministerial and Parliamentary Support Team,ADECCO UK LTD,1015128,608.77
"Department of Business, Innovation and Skills","Department of Business, Innovation and Skills",06/01/2011,Hire of Agency Staff (Clerical/Secretariat/Other),Ministerial and Parliamentary Support Team - Ministerial and Parliamentary Support Team,ADECCO UK LTD,1015434,628.91
"Department of Business, Innovation and Skills","Department of Business, Innovation and Skills",06/01/2011,Recruitment Consultancy Costs,Ministerial and Parliamentary Support Team - Ministerial and Parliamentary Support Team,ADECCO UK LTD,1015466,600.25
"Department of Business, Innovation and Skills","Department of Business, Innovation and Skills",06/01/2011,Hire of Agency Staff (Clerical/Secretariat/Other),Ministerial and Parliamentary Support Team - Ministerial and Parliamentary Support Team,ADECCO UK LTD,1015489,351.3
"Department of Business, Innovation and Skills","Department of Business, Innovation and Skills",06/01/2011,Recruitment Consultancy Costs,Ministerial and Parliamentary Support Team - Ministerial and Parliamentary Support Team,ADECCO UK LTD,1015493,477.63
"Department of Business, Innovation and Skills","Department of Business, Innovation and Skills",18/01/2011,Hire of Agency Staff (Clerical/Secretariat/Other),Ministerial and Parliamentary Support Team - Ministerial and Parliamentary Support Team,ADECCO UK LTD,1016599,250.24
"Department of Business, Innovation and Skills","Department of Business, Innovation and Skills",18/01/2011,Recruitment Consultancy Costs,Ministerial and Parliamentary Support Team - Ministerial and Parliamentary Support Team,ADECCO UK LTD,1016607,491.93
"Department of Business, Innovation and Skills","Department of Business, Innovation and Skills",18/01/2011,Recruitment Consultancy Costs,Ministerial and Parliamentary Support Team - Ministerial and Parliamentary Support Team,ADECCO UK LTD,1016608,244.45
"Department of Business, Innovation and Skills","Department of Business, Innovation and Skills",18/01/2011,Hire of Agency Staff (Clerical/Secretariat/Other),Ministerial and Parliamentary Support Team - Ministerial and Parliamentary Support Team,ADECCO UK LTD,1016612,520.44
"Department of Business, Innovation and Skills","Department of Business, Innovation and Skills",18/01/2011,Hire of Agency Staff (Clerical/Secretariat/Other),Ministerial and Parliamentary Support Team - Ministerial and Parliamentary Support Team,ADECCO UK LTD,1016615,487.09
"Department of Business, Innovation and Skills","Department of Business, Innovation and Skills",18/01/2011,Hire of Agency Staff (Clerical/Secretariat/Other),Ministerial and Parliamentary Support Team - Ministerial and Parliamentary Support Team,ADECCO UK LTD,1016617,481.2
"Department of Business, Innovation and Skills","Department of Business, Innovation and Skills",19/01/2011,Hire of Agency Staff (Clerical/Secretariat/Other),Ministerial and Parliamentary Support Team - Ministerial and Parliamentary Support Team,ADECCO UK LTD,1016619,390.85
"Department of Business, Innovation and Skills","Department of Business, Innovation and Skills",24/01/2011,Hire of Agency Staff (Clerical/Secretariat/Other),Ministerial and Parliamentary Support Team - Ministerial and Parliamentary Support Team,ADECCO UK LTD,1017073,63.2
"Department of Business, Innovation and Skills","Department of Business, Innovation and Skills",24/01/2011,Hire of Agency Staff (Clerical/Secretariat/Other),Ministerial and Parliamentary Support Team - Ministerial and Parliamentary Support Team,ADECCO UK LTD,1017082,359.37
"Department of Business, Innovation and Skills","Department of Business, Innovation and Skills",25/01/2011,Hire of Agency Staff (Clerical/Secretariat/Other),Ministerial and Parliamentary Support Team - Ministerial and Parliamentary Support Team,ADECCO UK LTD,1017105,456.71
"Department of Business, Innovation and Skills","Department of Business, Innovation and Skills",27/01/2011,Hire of Agency Staff (Clerical/Secretariat/Other),Ministerial and Parliamentary Support Team - Ministerial and Parliamentary Support Team,ADECCO UK LTD,1017112,444.08
"Department of Business, Innovation and Skills","Department of Business, Innovation and Skills",28/01/2011,Hire of Agency Staff (Clerical/Secretariat/Other),Ministerial and Parliamentary Support Team - Ministerial and Parliamentary Support Team,ADECCO UK LTD,1017114,860.92
"Department of Business, Innovation and Skills","Department of Business, Innovation and Skills",27/01/2011,Hire of Agency Staff (Clerical/Secretariat/Other),Ministerial and Parliamentary Support Team - Ministerial and Parliamentary Support Team,ADECCO UK LTD,1017115,850.47
"Department of Business, Innovation and Skills","Department of Business, Innovation and Skills",25/01/2011,Hire of Agency Staff (Clerical/Secretariat/Other),Ministerial and Parliamentary Support Team - Ministerial and Parliamentary Support Team,ADECCO UK LTD,1017117,593.12
"Department of Business, Innovation and Skills","Department of Business, Innovation and Skills",25/01/2011,Hire of Agency Staff (Clerical/Secretariat/Other),Ministerial and Parliamentary Support Team - Ministerial and Parliamentary Support Team,ADECCO UK LTD,1017147,438.05
"Department of Business, Innovation and Skills","Department of Business, Innovation and Skills",25/01/2011,Hire of Agency Staff (Clerical/Secretariat/Other),Ministerial and Parliamentary Support Team - Ministerial and Parliamentary Support Team,ADECCO UK LTD,1017147,155.73
"Department of Business, Innovation and Skills","Department of Business, Innovation and Skills",25/01/2011,Hire of Agency Staff (Clerical/Secretariat/Other),Ministerial and Parliamentary Support Team - Ministerial and Parliamentary Support Team,ADECCO UK LTD,1017197,26.63
"Department of Business, Innovation and Skills","Department of Business, Innovation and Skills",25/01/2011,Hire of Agency Staff (Clerical/Secretariat/Other),Ministerial and Parliamentary Support Team - Ministerial and Parliamentary Support Team,ADECCO UK LTD,1017197,618.94
"Department of Business, Innovation and Skills","Department of Business, Innovation and Skills",26/01/2011,Recruitment Consultancy Costs,Ministerial and Parliamentary Support Team - Ministerial and Parliamentary Support Team,ADECCO UK LTD,1017397,604.33
"Department of Business, Innovation and Skills","Department of Business, Innovation and Skills",26/01/2011,Recruitment Consultancy Costs,Ministerial and Parliamentary Support Team - Ministerial and Parliamentary Support Team,ADECCO UK LTD,1017400,592.06
"Department of Business, Innovation and Skills","Department of Business, Innovation and Skills",26/01/2011,Hire of Agency Staff (Clerical/Secretariat/Other),Ministerial and Parliamentary Support Team - Ministerial and Parliamentary Support Team,ADECCO UK LTD,1017472,657.81
"Department of Business, Innovation and Skills","Department of Business, Innovation and Skills",26/01/2011,Hire of Agency Staff (Clerical/Secretariat/Other),Ministerial and Parliamentary Support Team - Ministerial and Parliamentary Support Team,ADECCO UK LTD,1017473,625.12
"Department of Business, Innovation and Skills","Department of Business, Innovation and Skills",26/01/2011,Hire of Agency Staff (Clerical/Secretariat/Other),Ministerial and Parliamentary Support Team - Ministerial and Parliamentary Support Team,ADECCO UK LTD,1017474,133.67
"Department of Business, Innovation and Skills","Department of Business, Innovation and Skills",26/01/2011,Hire of Agency Staff (Clerical/Secretariat/Other),Ministerial and Parliamentary Support Team - Ministerial and Parliamentary Support Team,ADECCO UK LTD,1017475,643.07
"Department of Business, Innovation and Skills","Department of Business, Innovation and Skills",28/01/2011,Hire of Agency Staff (Clerical/Secretariat/Other),Ministerial and Parliamentary Support Team - Ministerial and Parliamentary Support Team,ADECCO UK LTD,1017550,870.07
"Department of Business, Innovation and Skills","Department of Business, Innovation and Skills",28/01/2011,Hire of Agency Staff (Clerical/Secretariat/Other),Ministerial and Parliamentary Support Team - Ministerial and Parliamentary Support Team,ADECCO UK LTD,1017560,439.19
"Department of Business, Innovation and Skills","Department of Business, Innovation and Skills",28/01/2011,Recruitment Consultancy Costs,Ministerial and Parliamentary Support Team - Ministerial and Parliamentary Support Team,ADECCO UK LTD,1017571,47.02
"Department of Business, Innovation and Skills","Department of Business, Innovation and Skills",28/01/2011,Recruitment Consultancy Costs,Ministerial and Parliamentary Support Team - Ministerial and Parliamentary Support Team,ADECCO UK LTD,1017571,449.14
"Department of Business, Innovation and Skills","Department of Business, Innovation and Skills",27/01/2011,Hire of Agency Staff (Clerical/Secretariat/Other),Ministerial and Parliamentary Support Team - Ministerial and Parliamentary Support Team,ADECCO UK LTD,1017574,625.91
"Department of Business, Innovation and Skills","Department of Business, Innovation and Skills",27/01/2011,Hire of Agency Staff (Clerical/Secretariat/Other),Ministerial and Parliamentary Support Team - Ministerial and Parliamentary Support Team,ADECCO UK LTD,1017575,625.91
"Department of Business, Innovation and Skills","Department of Business, Innovation and Skills",27/01/2011,Hire of Agency Staff (Clerical/Secretariat/Other),Ministerial and Parliamentary Support Team - Ministerial and Parliamentary Support Team,ADECCO UK LTD,1017591,577.04
"Department of Business, Innovation and Skills","Department of Business, Innovation and Skills",06/01/2011,Hire of Agency Staff (Clerical/Secretariat/Other),Shareholder Executive - Shareholder Executive,ADECCO UK LTD,1015491,743.49
"Department of Business, Innovation and Skills","Department of Business, Innovation and Skills",12/01/2011,Hire of Agency Staff (Clerical/Secretariat/Other),Shareholder Executive - Shareholder Executive,ADECCO UK LTD,1016104,790.34
"Department of Business, Innovation and Skills","Department of Business, Innovation and Skills",12/01/2011,Hire of Agency Staff (Clerical/Secretariat/Other),Shareholder Executive - Shareholder Executive,ADECCO UK LTD,1016105,283.67
"Department of Business, Innovation and Skills","Department of Business, Innovation and Skills",12/01/2011,Hire of Agency Staff (Clerical/Secretariat/Other),Shareholder Executive - Shareholder Executive,ADECCO UK LTD,1016106,634.17
"Department of Business, Innovation and Skills","Department of Business, Innovation and Skills",12/01/2011,Hire of Agency Staff (Clerical/Secretariat/Other),Shareholder Executive - Shareholder Executive,ADECCO UK LTD,1016107,676.95
"Department of Business, Innovation and Skills","Department of Business, Innovation and Skills",27/01/2011,Hire of Agency Staff (Clerical/Secretariat/Other),Shareholder Executive - Shareholder Executive,ADECCO UK LTD,1017573,870.95
"Department of Business, Innovation and Skills","Department of Business, Innovation and Skills",17/01/2011,Grant in Aid - Current -Other,Business & Skills Group - Economic Development Directorate,ADVANTAGE WEST MIDLANDS,1015994,30000000
"Department of Business, Innovation and Skills","Department of Business, Innovation and Skills",31/01/2011,Purchase of Completed Research,Business & Skills Group - Information Economy,AEA TECHNOLOGY ENVIRONMENT,1017604,12750
"Department of Business, Innovation and Skills","Department of Business, Innovation and Skills",25/01/2011,Purchase of Completed Research,Business & Skills Group - Information Economy,ALAN FELLOWS ASSOCIATES LTD,1017156,267
"Department of Business, Innovation and Skills","Department of Business, Innovation and Skills",25/01/2011,Purchase of Completed Research,Business & Skills Group - Information Economy,ALAN FELLOWS ASSOCIATES LTD,1017156,799.4
"Department of Business, Innovation and Skills","Department of Business, Innovation and Skills",11/01/2011,Criminal Law and Prosecution Work,"Legal, People & Communications Group - Legal",ALEXANDER ROOKE,1015770,511.9
"Department of Business, Innovation and Skills","Department of Business, Innovation and Skills",18/01/2011,Research & Development Expenditure (Programme),Knowledge and Innovation Group - GOVERNMENT OFFICE FOR SCIENCE,ALISON G POWER,1016250,5000
"Department of Business, Innovation and Skills","Department of Business, Innovation and Skills",25/01/2011,Recoveries Account,Corporate Payments - ,AMEC NUCLEAR UK LTD,1017367,153.68
"Department of Business, Innovation and Skills","Department of Business, Innovation and Skills",20/01/2011,IT Services (Programme),Finance & Commercial Group - Finance Group,AMEY COMMUNITY LTD,1016795,26827
"Department of Business, Innovation and Skills","Department of Business, Innovation and Skills",17/01/2011,Accounting Services,Finance & Commercial Group - Finance Group,AMEY COMMUNITY LTD,1016380,256629.77
"Department of Business, Innovation and Skills","Department of Business, Innovation and Skills",17/01/2011,Accounting Services,Finance & Commercial Group - Finance Group,AMEY COMMUNITY LTD,1016380,96229
"Department of Business, Innovation and Skills","Department of Business, Innovation and Skills",14/01/2011,Accounting Services,Finance & Commercial Group - Finance Group,AMEY COMMUNITY LTD,1016388,30101.25
"Department of Business, Innovation and Skills","Department of Business, Innovation and Skills",14/01/2011,Accounting Services,Finance & Commercial Group - Finance Group,AMEY COMMUNITY LTD,1016389,4352
"Department of Business, Innovation and Skills","Department of Business, Innovation and Skills",14/01/2011,Accounting Services,Finance & Commercial Group - Finance Group,AMEY COMMUNITY LTD,1016393,894.35
"Department of Business, Innovation and Skills","Department of Business, Innovation and Skills",20/01/2011,Accounting Services,Finance & Commercial Group - Finance Group,AMEY COMMUNITY LTD,1016791,210
"Department of Business, Innovation and Skills","Department of Business, Innovation and Skills",20/01/2011,Accounting Services,Finance & Commercial Group - Finance Group,AMEY COMMUNITY LTD,1016792,6752
"Department of Business, Innovation and Skills","Department of Business, Innovation and Skills",20/01/2011,Accounting Services,Finance & Commercial Group - Finance Group,AMEY COMMUNITY LTD,1016793,3150.2
"Department of Business, Innovation and Skills","Department of Business, Innovation and Skills",20/01/2011,Accounting Services,Finance & Commercial Group - Finance Group,AMEY COMMUNITY LTD,1016794,2500
"Department of Business, Innovation and Skills","Department of Business, Innovation and Skills",26/01/2011,Accounting Services,Finance & Commercial Group - Finance Group,AMEY COMMUNITY LTD,1017513,1729.75
"Department of Business, Innovation and Skills","Department of Business, Innovation and Skills",26/01/2011,Accounting Services,Finance & Commercial Group - Finance Group,AMEY COMMUNITY LTD,1017548,22160
"Department of Business, Innovation and Skills","Department of Business, Innovation and Skills",25/01/2011,Language Training,"Legal, People & Communications Group - HRCM - Human Resources and Change Management Directorate",AMIRA LANGUAGE SCHOOL,1016719,683.76
"Department of Business, Innovation and Skills","Department of Business, Innovation and Skills",13/01/2011,Corporate Management Consultancy,Finance & Commercial Group - Finance Group,AMTEC Consulting plc,1015352,19500
"Department of Business, Innovation and Skills","Department of Business, Innovation and Skills",05/01/2011,Research & Development Expenditure (Programme),Knowledge and Innovation Group - GOVERNMENT OFFICE FOR SCIENCE,ANDREW GEDDES,1015357,2205
"Department of Business, Innovation and Skills","Department of Business, Innovation and Skills",05/01/2011,Research & Development Expenditure (Programme),Knowledge and Innovation Group - GOVERNMENT OFFICE FOR SCIENCE,ANDREW GEDDES,1015359,925.6
"Department of Business, Innovation and Skills","Department of Business, Innovation and Skills",05/01/2011,Research & Development Expenditure (Programme),Knowledge and Innovation Group - GOVERNMENT OFFICE FOR SCIENCE,ANDREW GEDDES,1015361,1427.5
"Department of Business, Innovation and Skills","Department of Business, Innovation and Skills",07/01/2011,Cash Expenditure during the Year - Other Programme Provisions,Finance & Commercial Group - Finance Group,ANGELA LANDAU,1015684,522
"Department of Business, Innovation and Skills","Department of Business, Innovation and Skills",26/01/2011,Criminal Law and Prosecution Work,"Legal, People & Communications Group - Legal",ANTROBUS & CO LTD,1017467,232.8
"Department of Business, Innovation and Skills","Department of Business, Innovation and Skills",12/01/2011,Grants - Statutory - Current - Other,Business & Skills Group - Further Education & Skills Investment,AOC CREATE LTD T/A ASSOCIATION OF COLLEGES,1016073,85000
"Department of Business, Innovation and Skills","Department of Business, Innovation and Skills",20/01/2011,Leased Buildings - Clearing,Finance & Commercial Group - Information and Workplace Strategies,APEX LIFT AND ESCALATOR ENGINEERS LTD,1016501,2561.5
"Department of Business, Innovation and Skills","Department of Business, Innovation and Skills",20/01/2011,Leased Buildings - Clearing,Finance & Commercial Group - Information and Workplace Strategies,APEX LIFT AND ESCALATOR ENGINEERS LTD,1016501,6838.5
"Department of Business, Innovation and Skills","Department of Business, Innovation and Skills",11/01/2011,Lifts,Finance & Commercial Group - Information and Workplace Strategies,APEX LIFT AND ESCALATOR ENGINEERS LTD,1015852,8822.51
"Department of Business, Innovation and Skills","Department of Business, Innovation and Skills",11/01/2011,Lifts,Finance & Commercial Group - Information and Workplace Strategies,APEX LIFT AND ESCALATOR ENGINEERS LTD,1015852,725.44
"Department of Business, Innovation and Skills","Department of Business, Innovation and Skills",11/01/2011,Lifts,Finance & Commercial Group - Information and Workplace Strategies,APEX LIFT AND ESCALATOR ENGINEERS LTD,1015852,1013.44
"Department of Business, Innovation and Skills","Department of Business, Innovation and Skills",11/01/2011,Lifts,Finance & Commercial Group - Information and Workplace Strategies,APEX LIFT AND ESCALATOR ENGINEERS LTD,1015852,1813.59
"Department of Business, Innovation and Skills","Department of Business, Innovation and Skills",11/01/2011,Lifts,Finance & Commercial Group - Information and Workplace Strategies,APEX LIFT AND ESCALATOR ENGINEERS LTD,1015852,175.11
"Department of Business, Innovation and Skills","Department of Business, Innovation and Skills",13/01/2011,Payments to Barclays for Carlson Wagonlit Travel Contract,Finance & Commercial Group - Finance Group,ARNOLD CLARK,1016220,41.52
"Department of Business, Innovation and Skills","Department of Business, Innovation and Skills",07/01/2011,Cash Expenditure during the Year - Other Programme Provisions,Finance & Commercial Group - Finance Group,ARTHUR D HARVERD,1015678,522
"Department of Business, Innovation and Skills","Department of Business, Innovation and Skills",10/01/2011,Grant in Aid - Current -Other,Knowledge and Innovation Group - RESEARCH BASE,ARTS AND HUMANITIES RESEARCH COUNCIL,1015752,4206000
"Department of Business, Innovation and Skills","Department of Business, Innovation and Skills",12/01/2011,Car Hire and Leasing,Business & Skills Group - Information Economy,ARVAL (UK) LTD,1016121,111.3
"Department of Business, Innovation and Skills","Department of Business, Innovation and Skills",11/01/2011,Car Hire and Leasing,"Legal, People & Communications Group - Legal",ARVAL (UK) LTD,1015217,308.79
"Department of Business, Innovation and Skills","Department of Business, Innovation and Skills",05/01/2011,Car Hire and Leasing (Programme),Market and Frameworks Group - ECO,ARVAL (UK) LTD,1015309,58.2
"Department of Business, Innovation and Skills","Department of Business, Innovation and Skills",10/01/2011,Car Hire and Leasing (Programme),Market and Frameworks Group - ECO,ARVAL (UK) LTD,1015726,0.05
"Department of Business, Innovation and Skills","Department of Business, Innovation and Skills",10/01/2011,Car Hire and Leasing (Programme),Market and Frameworks Group - ECO,ARVAL (UK) LTD,1015726,285.7
"Department of Business, Innovation and Skills","Department of Business, Innovation and Skills",10/01/2011,Car Hire and Leasing (Programme),Market and Frameworks Group - ECO,ARVAL (UK) LTD,1015726,392.4
"Department of Business, Innovation and Skills","Department of Business, Innovation and Skills",24/01/2011,Other Training Costs,Strategy Group - Strategy Directorate,ASCOLTO LTD,1017093,596.24
"Department of Business, Innovation and Skills","Department of Business, Innovation and Skills",27/01/2011,Professional Subscriptions,Business & Skills Group - USG Admin,ASSOCIATION FOR LEARNING TECHNOLOGY,1017426,660
"Department of Business, Innovation and Skills","Department of Business, Innovation and Skills",26/01/2011,Grants - Statutory - Current - Other,Knowledge and Innovation Group - RESEARCH BASE,ASSOCIATION OF COMMONWEALTH UNIVERSITIES,1017545,49433.99
"Department of Business, Innovation and Skills","Department of Business, Innovation and Skills",27/01/2011,Grants - Statutory - Current - Other,Knowledge and Innovation Group - RESEARCH BASE,ASTON UNIVERSITY,1017641,2000
"Department of Business, Innovation and Skills","Department of Business, Innovation and Skills",06/01/2011,Leadership & People Management Training,"Legal, People & Communications Group - HRCM - Human Resources and Change Management Directorate",BABINGTON BUSINESS COLLEGE LTD,1015534,266.51
"Department of Business, Innovation and Skills","Department of Business, Innovation and Skills",06/01/2011,Leadership & People Management Training,"Legal, People & Communications Group - HRCM - Human Resources and Change Management Directorate",BABINGTON BUSINESS COLLEGE LTD,1015534,334.98
"Department of Business, Innovation and Skills","Department of Business, Innovation and Skills",06/01/2011,Outsourced Programme Management Services,"Legal, People & Communications Group - Communications Directorate",BADENOCH AND CLARK LTD,1015123,1825.3
"Department of Business, Innovation and Skills","Department of Business, Innovation and Skills",06/01/2011,Outsourced Programme Management Services,"Legal, People & Communications Group - Communications Directorate",BADENOCH AND CLARK LTD,1015218,1460.24
"Department of Business, Innovation and Skills","Department of Business, Innovation and Skills",07/01/2011,Outsourced Programme Management Services,"Legal, People & Communications Group - Communications Directorate",BADENOCH AND CLARK LTD,1015432,1825.3
"Department of Business, Innovation and Skills","Department of Business, Innovation and Skills",17/01/2011,Outsourced Programme Management Services,"Legal, People & Communications Group - Communications Directorate",BADENOCH AND CLARK LTD,1016394,1864.14
"Department of Business, Innovation and Skills","Department of Business, Innovation and Skills",27/01/2011,Outsourced Programme Management Services,"Legal, People & Communications Group - Communications Directorate",BADENOCH AND CLARK LTD,1017086,1864.14
"Department of Business, Innovation and Skills","Department of Business, Innovation and Skills",31/01/2011,Outsourced Programme Management Services,"Legal, People & Communications Group - Communications Directorate",BADENOCH AND CLARK LTD,1017864,1864.14
"Department of Business, Innovation and Skills","Department of Business, Innovation and Skills",06/01/2011,Hire of Agency Staff (Professional/Management),"Legal, People & Communications Group - Legal",BADENOCH AND CLARK LTD,1015485,881.25
"Department of Business, Innovation and Skills","Department of Business, Innovation and Skills",06/01/2011,Hire of Agency Staff (Professional/Management),"Legal, People & Communications Group - Legal",BADENOCH AND CLARK LTD,1015486,1277.81
"Department of Business, Innovation and Skills","Department of Business, Innovation and Skills",20/01/2011,Hire of Agency Staff (Professional/Management),"Legal, People & Communications Group - Legal",BADENOCH AND CLARK LTD,1016730,720
"Department of Business, Innovation and Skills","Department of Business, Innovation and Skills",12/01/2011,Research & Development Expenditure (Programme),Knowledge and Innovation Group - GOVERNMENT OFFICE FOR SCIENCE,BANK OF ENGLAND,1016156,159.72
"Department of Business, Innovation and Skills","Department of Business, Innovation and Skills",12/01/2011,Payments to Barclays for Carlson Wagonlit Travel Contract,Finance & Commercial Group - Finance Group,BANNER BUSINESS SERVICES LTD,1015699,1461.36
"Department of Business, Innovation and Skills","Department of Business, Innovation and Skills",12/01/2011,Government Procurement Card New Procedures,Corporate Payments - ,BARCLAYS BANK PLC,1016194,6298.93
"Department of Business, Innovation and Skills","Department of Business, Innovation and Skills",12/01/2011,Government Procurement Card New Procedures,Finance & Commercial Group - Finance Group,BARCLAYS BANK PLC,1016188,55129.59
"Department of Business, Innovation and Skills","Department of Business, Innovation and Skills",12/01/2011,Government Procurement Card New Procedures,Finance & Commercial Group - Finance Group,BARCLAYS BANK PLC,1016190,36851.61
"Department of Business, Innovation and Skills","Department of Business, Innovation and Skills",12/01/2011,Payments to Barclays for Carlson Wagonlit Travel Contract,Finance & Commercial Group - Finance Group,BARCLAYS BANK PLC,1016192,161228.3
"Department of Business, Innovation and Skills","Department of Business, Innovation and Skills",17/01/2011,Hire of Conference Facilities,Finance & Commercial Group - Information and Workplace Strategies,BAXTERSTOREY LTD,1016523,32875
"Department of Business, Innovation and Skills","Department of Business, Innovation and Skills",11/01/2011,Police Negotiating Board Funding,Office of Manpower Economics - Office of Manpower Economics,BAXTERSTOREY LTD,1015624,5.88
"Department of Business, Innovation and Skills","Department of Business, Innovation and Skills",11/01/2011,Police Negotiating Board Funding,Office of Manpower Economics - Office of Manpower Economics,BAXTERSTOREY LTD,1015629,290.4
"Department of Business, Innovation and Skills","Department of Business, Innovation and Skills",11/01/2011,Police Negotiating Board Funding,Office of Manpower Economics - Office of Manpower Economics,BAXTERSTOREY LTD,1015637,22.15
"Department of Business, Innovation and Skills","Department of Business, Innovation and Skills",11/01/2011,Police Negotiating Board Funding,Office of Manpower Economics - Office of Manpower Economics,BAXTERSTOREY LTD,1015640,16.22
"Department of Business, Innovation and Skills","Department of Business, Innovation and Skills",11/01/2011,Police Negotiating Board Funding,Office of Manpower Economics - Office of Manpower Economics,BAXTERSTOREY LTD,1015643,26.56
"Department of Business, Innovation and Skills","Department of Business, Innovation and Skills",14/01/2011,Police Negotiating Board Funding,Office of Manpower Economics - Office of Manpower Economics,BAXTERSTOREY LTD,1015647,29.49
"Department of Business, Innovation and Skills","Department of Business, Innovation and Skills",11/01/2011,Police Negotiating Board Funding,Office of Manpower Economics - Office of Manpower Economics,BAXTERSTOREY LTD,1015654,22.15
"Department of Business, Innovation and Skills","Department of Business, Innovation and Skills",11/01/2011,Police Negotiating Board Funding,Office of Manpower Economics - Office of Manpower Economics,BAXTERSTOREY LTD,1015656,45
"Department of Business, Innovation and Skills","Department of Business, Innovation and Skills",18/01/2011,Counsels Expert Legal Opinion on Points of Law,"Legal, People & Communications Group - Legal",BEACHCROFT LLP,1016574,2238.38
"Department of Business, Innovation and Skills","Department of Business, Innovation and Skills",18/01/2011,Counsels Expert Legal Opinion on Points of Law,"Legal, People & Communications Group - Legal",BEACHCROFT LLP,1016574,-1905
"Department of Business, Innovation and Skills","Department of Business, Innovation and Skills",18/01/2011,Counsels Expert Legal Opinion on Points of Law,"Legal, People & Communications Group - Legal",BEACHCROFT LLP,1016575,793.13
"Department of Business, Innovation and Skills","Department of Business, Innovation and Skills",18/01/2011,Counsels Expert Legal Opinion on Points of Law,"Legal, People & Communications Group - Legal",BEACHCROFT LLP,1016575,-675
"Department of Business, Innovation and Skills","Department of Business, Innovation and Skills",18/01/2011,Counsels Expert Legal Opinion on Points of Law,"Legal, People & Communications Group - Legal",BEACHCROFT LLP,1016576,1216.13
"Department of Business, Innovation and Skills","Department of Business, Innovation and Skills",18/01/2011,Counsels Expert Legal Opinion on Points of Law,"Legal, People & Communications Group - Legal",BEACHCROFT LLP,1016576,-1035
"Department of Business, Innovation and Skills","Department of Business, Innovation and Skills",18/01/2011,Counsels Expert Legal Opinion on Points of Law,"Legal, People & Communications Group - Legal",BEACHCROFT LLP,1016577,1189.1
"Department of Business, Innovation and Skills","Department of Business, Innovation and Skills",18/01/2011,Counsels Expert Legal Opinion on Points of Law,"Legal, People & Communications Group - Legal",BEACHCROFT LLP,1016577,-1012
"Department of Business, Innovation and Skills","Department of Business, Innovation and Skills",18/01/2011,Counsels Expert Legal Opinion on Points of Law,"Legal, People & Communications Group - Legal",BEACHCROFT LLP,1016578,3940.74
"Department of Business, Innovation and Skills","Department of Business, Innovation and Skills",18/01/2011,Counsels Expert Legal Opinion on Points of Law,"Legal, People & Communications Group - Legal",BEACHCROFT LLP,1016578,-3353.82
"Department of Business, Innovation and Skills","Department of Business, Innovation and Skills",18/01/2011,Counsels Expert Legal Opinion on Points of Law,"Legal, People & Communications Group - Legal",BEACHCROFT LLP,1016579,1709.63
"Department of Business, Innovation and Skills","Department of Business, Innovation and Skills",18/01/2011,Counsels Expert Legal Opinion on Points of Law,"Legal, People & Communications Group - Legal",BEACHCROFT LLP,1016579,-1455
"Department of Business, Innovation and Skills","Department of Business, Innovation and Skills",18/01/2011,Counsels Expert Legal Opinion on Points of Law,"Legal, People & Communications Group - Legal",BEACHCROFT LLP,1016581,4533.63
"Department of Business, Innovation and Skills","Department of Business, Innovation and Skills",18/01/2011,Counsels Expert Legal Opinion on Points of Law,"Legal, People & Communications Group - Legal",BEACHCROFT LLP,1016581,-3858.41
"Department of Business, Innovation and Skills","Department of Business, Innovation and Skills",18/01/2011,Counsels Expert Legal Opinion on Points of Law,"Legal, People & Communications Group - Legal",BEACHCROFT LLP,1016582,3310.56
"Department of Business, Innovation and Skills","Department of Business, Innovation and Skills",18/01/2011,Counsels Expert Legal Opinion on Points of Law,"Legal, People & Communications Group - Legal",BEACHCROFT LLP,1016582,-2817.5
"Department of Business, Innovation and Skills","Department of Business, Innovation and Skills",18/01/2011,Counsels Expert Legal Opinion on Points of Law,"Legal, People & Communications Group - Legal",BEACHCROFT LLP,1016583,326.03
"Department of Business, Innovation and Skills","Department of Business, Innovation and Skills",18/01/2011,Counsels Expert Legal Opinion on Points of Law,"Legal, People & Communications Group - Legal",BEACHCROFT LLP,1016583,-283.5
"Department of Business, Innovation and Skills","Department of Business, Innovation and Skills",18/01/2011,Counsels Expert Legal Opinion on Points of Law,"Legal, People & Communications Group - Legal",BEACHCROFT LLP,1016583,459.43
"Department of Business, Innovation and Skills","Department of Business, Innovation and Skills",18/01/2011,Counsels Expert Legal Opinion on Points of Law,"Legal, People & Communications Group - Legal",BEACHCROFT LLP,1016583,-391
"Department of Business, Innovation and Skills","Department of Business, Innovation and Skills",18/01/2011,Counsels Expert Legal Opinion on Points of Law,"Legal, People & Communications Group - Legal",BEACHCROFT LLP,1016584,84.53
"Department of Business, Innovation and Skills","Department of Business, Innovation and Skills",18/01/2011,Counsels Expert Legal Opinion on Points of Law,"Legal, People & Communications Group - Legal",BEACHCROFT LLP,1016584,-73.5
"Department of Business, Innovation and Skills","Department of Business, Innovation and Skills",18/01/2011,Counsels Expert Legal Opinion on Points of Law,"Legal, People & Communications Group - Legal",BEACHCROFT LLP,1016584,486.45
"Department of Business, Innovation and Skills","Department of Business, Innovation and Skills",18/01/2011,Counsels Expert Legal Opinion on Points of Law,"Legal, People & Communications Group - Legal",BEACHCROFT LLP,1016584,-414
"Department of Business, Innovation and Skills","Department of Business, Innovation and Skills",18/01/2011,Counsels Expert Legal Opinion on Points of Law,"Legal, People & Communications Group - Legal",BEACHCROFT LLP,1016586,66.13
"Department of Business, Innovation and Skills","Department of Business, Innovation and Skills",18/01/2011,Counsels Expert Legal Opinion on Points of Law,"Legal, People & Communications Group - Legal",BEACHCROFT LLP,1016586,-57.5
"Department of Business, Innovation and Skills","Department of Business, Innovation and Skills",18/01/2011,Counsels Expert Legal Opinion on Points of Law,"Legal, People & Communications Group - Legal",BEACHCROFT LLP,1016586,1891.75
"Department of Business, Innovation and Skills","Department of Business, Innovation and Skills",18/01/2011,Counsels Expert Legal Opinion on Points of Law,"Legal, People & Communications Group - Legal",BEACHCROFT LLP,1016586,-1610
"Department of Business, Innovation and Skills","Department of Business, Innovation and Skills",18/01/2011,Counsels Expert Legal Opinion on Points of Law,"Legal, People & Communications Group - Legal",BEACHCROFT LLP,1016586,2.12
"Department of Business, Innovation and Skills","Department of Business, Innovation and Skills",18/01/2011,Counsels Expert Legal Opinion on Points of Law,"Legal, People & Communications Group - Legal",BEACHCROFT LLP,1016586,-1.8
"Department of Business, Innovation and Skills","Department of Business, Innovation and Skills",18/01/2011,Counsels Expert Legal Opinion on Points of Law,"Legal, People & Communications Group - Legal",BEACHCROFT LLP,1016587,3530.5
"Department of Business, Innovation and Skills","Department of Business, Innovation and Skills",18/01/2011,Counsels Expert Legal Opinion on Points of Law,"Legal, People & Communications Group - Legal",BEACHCROFT LLP,1016587,37.25
"Department of Business, Innovation and Skills","Department of Business, Innovation and Skills",18/01/2011,Counsels Expert Legal Opinion on Points of Law,"Legal, People & Communications Group - Legal",BEACHCROFT LLP,1016587,-3567.75
"Department of Business, Innovation and Skills","Department of Business, Innovation and Skills",14/01/2011,Criminal Law and Prosecution Work,"Legal, People & Communications Group - Legal",BEATA MOLGA,1016251,29.76
"Department of Business, Innovation and Skills","Department of Business, Innovation and Skills",18/01/2011,Other Library Services,"Legal, People & Communications Group - Communications Directorate",BELL DESIGN & COMMUNICATIONS LTD,1016209,6691
"Department of Business, Innovation and Skills","Department of Business, Innovation and Skills",18/01/2011,Other Library Services,"Legal, People & Communications Group - Communications Directorate",BELL DESIGN & COMMUNICATIONS LTD,1016210,220
"Department of Business, Innovation and Skills","Department of Business, Innovation and Skills",14/01/2011,Additions - Enterprise Equity Investments,Business & Skills Group - Enterprise Directorate,BERR EQUITY INVESTMENT PROGRAMMES (CAPITAL),1016349,155839
"Department of Business, Innovation and Skills","Department of Business, Innovation and Skills",11/01/2011,Additions - Enterprise Equity Investments,Business & Skills Group - Enterprise Directorate,BERR EQUITY INVESTMENT PROGRAMMES (CAPITAL),1015927,105444.17
"Department of Business, Innovation and Skills","Department of Business, Innovation and Skills",11/01/2011,Additions - Enterprise Equity Investments,Business & Skills Group - Enterprise Directorate,BERR EQUITY INVESTMENT PROGRAMMES (CAPITAL),1015927,120205.48
"Department of Business, Innovation and Skills","Department of Business, Innovation and Skills",14/01/2011,Additions - Enterprise Equity Investments,Business & Skills Group - Enterprise Directorate,BERR EQUITY INVESTMENT PROGRAMMES (CAPITAL),1016350,195000
"Department of Business, Innovation and Skills","Department of Business, Innovation and Skills",14/01/2011,Additions - Enterprise Equity Investments,Business & Skills Group - Enterprise Directorate,BERR EQUITY INVESTMENT PROGRAMMES (CAPITAL),1016350,52890.57
"Department of Business, Innovation and Skills","Department of Business, Innovation and Skills",20/01/2011,Additions - Enterprise Equity Investments,Business & Skills Group - Enterprise Directorate,BERR EQUITY INVESTMENT PROGRAMMES (CAPITAL),1016743,166340.4
"Department of Business, Innovation and Skills","Department of Business, Innovation and Skills",21/01/2011,Additions - Enterprise Equity Investments,Business & Skills Group - Enterprise Directorate,BERR EQUITY INVESTMENT PROGRAMMES (CAPITAL),1016876,24359.32
"Department of Business, Innovation and Skills","Department of Business, Innovation and Skills",26/01/2011,Additions - Enterprise Equity Investments,Business & Skills Group - Enterprise Directorate,BERR EQUITY INVESTMENT PROGRAMMES (CAPITAL),1017532,655640.68
"Department of Business, Innovation and Skills","Department of Business, Innovation and Skills",26/01/2011,Additions - Enterprise Equity Investments,Business & Skills Group - Enterprise Directorate,BERR EQUITY INVESTMENT PROGRAMMES (CAPITAL),1017536,110958.91
"Department of Business, Innovation and Skills","Department of Business, Innovation and Skills",21/01/2011,Additions - Enterprise Equity Investments,Business & Skills Group - Enterprise Directorate,BERR EQUITY INVESTMENT PROGRAMMES (CAPITAL),1016875,14583.33
"Department of Business, Innovation and Skills","Department of Business, Innovation and Skills",31/01/2011,Cash Expenditure during the Year - SFLG,Business & Skills Group - Enterprise Directorate,BERR SFLG PAYMENT TO LENDERS,1017957,103934.48
"Department of Business, Innovation and Skills","Department of Business, Innovation and Skills",31/01/2011,Cash Expenditure during the Year - SFLG,Business & Skills Group - Enterprise Directorate,BERR SFLG PAYMENT TO LENDERS,1017958,23752.95
"Department of Business, Innovation and Skills","Department of Business, Innovation and Skills",31/01/2011,Cash Expenditure during the Year - SFLG,Business & Skills Group - Enterprise Directorate,BERR SFLG PAYMENT TO LENDERS,1017959,1452541.72
"Department of Business, Innovation and Skills","Department of Business, Innovation and Skills",31/01/2011,Cash Expenditure during the Year - SFLG,Business & Skills Group - Enterprise Directorate,BERR SFLG PAYMENT TO LENDERS,1017960,760098.94
"Department of Business, Innovation and Skills","Department of Business, Innovation and Skills",31/01/2011,Cash Expenditure during the Year - SFLG,Business & Skills Group - Enterprise Directorate,BERR SFLG PAYMENT TO LENDERS,1017962,60748.58
"Department of Business, Innovation and Skills","Department of Business, Innovation and Skills",31/01/2011,Cash Expenditure during the Year - SFLG,Business & Skills Group - Enterprise Directorate,BERR SFLG PAYMENT TO LENDERS,1017963,17346.67
"Department of Business, Innovation and Skills","Department of Business, Innovation and Skills",31/01/2011,Cash Expenditure during the Year - SFLG,Business & Skills Group - Enterprise Directorate,BERR SFLG PAYMENT TO LENDERS,1017964,39904.69
"Department of Business, Innovation and Skills","Department of Business, Innovation and Skills",31/01/2011,Cash Expenditure during the Year - SFLG,Business & Skills Group - Enterprise Directorate,BERR SFLG PAYMENT TO LENDERS,1017966,25046.78
"Department of Business, Innovation and Skills","Department of Business, Innovation and Skills",31/01/2011,Cash Expenditure during the Year - SFLG,Business & Skills Group - Enterprise Directorate,BERR SFLG PAYMENT TO LENDERS,1017968,73791.52
"Department of Business, Innovation and Skills","Department of Business, Innovation and Skills",31/01/2011,Cash Expenditure during the Year - SFLG,Business & Skills Group - Enterprise Directorate,BERR SFLG PAYMENT TO LENDERS,1017969,532966.02
"Department of Business, Innovation and Skills","Department of Business, Innovation and Skills",31/01/2011,Cash Expenditure during the Year - SFLG,Business & Skills Group - Enterprise Directorate,BERR SFLG PAYMENT TO LENDERS,1017971,26713.03
"Department of Business, Innovation and Skills","Department of Business, Innovation and Skills",31/01/2011,Cash Expenditure during the Year - SFLG,Business & Skills Group - Enterprise Directorate,BERR SFLG PAYMENT TO LENDERS,1017972,63750
"Department of Business, Innovation and Skills","Department of Business, Innovation and Skills",31/01/2011,Cash Expenditure during the Year - SFLG,Business & Skills Group - Enterprise Directorate,BERR SFLG PAYMENT TO LENDERS,1017973,576624.13
"Department of Business, Innovation and Skills","Department of Business, Innovation and Skills",31/01/2011,Cash Expenditure during the Year - SFLG,Business & Skills Group - Enterprise Directorate,BERR SFLG PAYMENT TO LENDERS,1017974,1460379.27
"Department of Business, Innovation and Skills","Department of Business, Innovation and Skills",31/01/2011,Cash Expenditure during the Year - SFLG,Business & Skills Group - Enterprise Directorate,BERR SFLG PAYMENT TO LENDERS,1017975,2091449.22
"Department of Business, Innovation and Skills","Department of Business, Innovation and Skills",07/01/2011,Outsourced Technical Support (Programme),Business & Skills Group - Enterprise Directorate,BETA TECHNOLOGY LTD,1015578,25262.5
"Department of Business, Innovation and Skills","Department of Business, Innovation and Skills",10/01/2011,Grant in Aid - Current -Other,Knowledge and Innovation Group - RESEARCH BASE,BIOTECHNOLOGY AND BIOLOGICAL SCIENCE RESEARCH COUNCIL,1015753,70000000
"Department of Business, Innovation and Skills","Department of Business, Innovation and Skills",10/01/2011,Grants - Statutory - Current - Other,Knowledge and Innovation Group - RESEARCH BASE,BIOTECHNOLOGY AND BIOLOGICAL SCIENCE RESEARCH COUNCIL,1015754,2700000
"Department of Business, Innovation and Skills","Department of Business, Innovation and Skills",27/01/2011,Grants - Non Statutory - Current - Other,Market and Frameworks Group - Consumer and Competition Policy,BIRMINGHAM CITY COUNCIL,1017689,420291
"Department of Business, Innovation and Skills","Department of Business, Innovation and Skills",05/01/2011,Grants - Non Statutory - Current - Other,Knowledge and Innovation Group - Learners,BIRMINGHAM CITY UNIVERSITY,1014949,642.83
"Department of Business, Innovation and Skills","Department of Business, Innovation and Skills",07/01/2011,Capital Grants - Other,Knowledge and Innovation Group - Innovation,BIS UK INNOVATION INVESTMENT FUND,1015706,174460.96
"Department of Business, Innovation and Skills","Department of Business, Innovation and Skills",26/01/2011,Capital Grants - Other,Knowledge and Innovation Group - Innovation,BIS UK INNOVATION INVESTMENT FUND,1017480,92465.75
"Department of Business, Innovation and Skills","Department of Business, Innovation and Skills",13/01/2011,Publications,"Legal, People & Communications Group - Legal",BLACKWELL UK LTD,1015220,2449.76
"Department of Business, Innovation and Skills","Department of Business, Innovation and Skills",12/01/2011,Publications,"Legal, People & Communications Group - Legal",BLACKWELL UK LTD,1015977,260
"Department of Business, Innovation and Skills","Department of Business, Innovation and Skills",12/01/2011,Hire of Reprographic Equipment,Ministerial and Parliamentary Support Team - Ministerial and Parliamentary Support Team,BNP PARIBAS LEASE GROUP (RENTALS) LTD T/A DANWOOD CONTRACT RENTALS,1016149,234.68
"Department of Business, Innovation and Skills","Department of Business, Innovation and Skills",12/01/2011,Hire of Reprographic Equipment,Ministerial and Parliamentary Support Team - Ministerial and Parliamentary Support Team,BNP PARIBAS LEASE GROUP (RENTALS) LTD T/A DANWOOD CONTRACT RENTALS,1016152,234.68
"Department of Business, Innovation and Skills","Department of Business, Innovation and Skills",28/01/2011,Hire of Reprographic Equipment,Ministerial and Parliamentary Support Team - Ministerial and Parliamentary Support Team,BNP PARIBAS LEASE GROUP (RENTALS) LTD T/A DANWOOD CONTRACT RENTALS,1017779,234.68
"Department of Business, Innovation and Skills","Department of Business, Innovation and Skills",10/01/2011,Accommodation Rentals (Programme),Business & Skills Group - Further Education & Skills Investment,BNP PARIBAS REAL ESTATE,1014813,69031.25
"Department of Business, Innovation and Skills","Department of Business, Innovation and Skills",10/01/2011,Maintenance (Programme),Business & Skills Group - Further Education & Skills Investment,BNP PARIBAS REAL ESTATE,1014814,12633.12
"Department of Business, Innovation and Skills","Department of Business, Innovation and Skills",31/01/2011,Publications (Programme),Knowledge and Innovation Group - UK Space Agency,BOFFIN MEDIA,1017887,4500
"Department of Business, Innovation and Skills","Department of Business, Innovation and Skills",12/01/2011,Purchase of  Advertising and Publicity (Programme),Market and Frameworks Group - Employment Relations,BOUNTY UK LTD,1016066,9350
"Department of Business, Innovation and Skills","Department of Business, Innovation and Skills",07/01/2011,Finance Training,"Legal, People & Communications Group - HRCM - Human Resources and Change Management Directorate",BPP LEARNING MEDIA LTD,1015614,2700
"Department of Business, Innovation and Skills","Department of Business, Innovation and Skills",05/01/2011,Professional Training,Business & Skills Group - USG Admin,BPP PROFESSIONAL EDUCATION LTD,1014696,645.08
"Department of Business, Innovation and Skills","Department of Business, Innovation and Skills",21/01/2011,Other Training Costs,Market and Frameworks Group - Corporate Law and Governance,BRITISH ACCOUNTING ASSOCIATION CORPORATE GOVERNANCE SPECIAL INTEREST GROUP (BAACGSIG),1016903,200
"Department of Business, Innovation and Skills","Department of Business, Innovation and Skills",17/01/2011,Electricity (Programme),Finance & Commercial Group - Information and Workplace Strategies,BRITISH ENERGY DIRECT LTD,1016362,7988.61
"Department of Business, Innovation and Skills","Department of Business, Innovation and Skills",14/01/2011,Electricity (Programme),Finance & Commercial Group - Information and Workplace Strategies,BRITISH GAS BUSINESS SERVICES LTD,1016370,54.21
"Department of Business, Innovation and Skills","Department of Business, Innovation and Skills",14/01/2011,Electricity (Programme),Finance & Commercial Group - Information and Workplace Strategies,BRITISH GAS BUSINESS SERVICES LTD,1016372,168.4
"Department of Business, Innovation and Skills","Department of Business, Innovation and Skills",14/01/2011,Electricity (Programme),Finance & Commercial Group - Information and Workplace Strategies,BRITISH GAS BUSINESS SERVICES LTD,1016378,571.21
"Department of Business, Innovation and Skills","Department of Business, Innovation and Skills",14/01/2011,Electricity (Programme),Finance & Commercial Group - Information and Workplace Strategies,BRITISH GAS BUSINESS SERVICES LTD,1016384,845.35
"Department of Business, Innovation and Skills","Department of Business, Innovation and Skills",14/01/2011,Electricity (Programme),Finance & Commercial Group - Information and Workplace Strategies,BRITISH GAS BUSINESS SERVICES LTD,1016392,997.39
"Department of Business, Innovation and Skills","Department of Business, Innovation and Skills",17/01/2011,Electricity (Programme),Finance & Commercial Group - Information and Workplace Strategies,BRITISH GAS BUSINESS SERVICES LTD,1016396,751.54
"Department of Business, Innovation and Skills","Department of Business, Innovation and Skills",17/01/2011,Electricity (Programme),Finance & Commercial Group - Information and Workplace Strategies,BRITISH GAS BUSINESS SERVICES LTD,1016406,248.21
"Department of Business, Innovation and Skills","Department of Business, Innovation and Skills",17/01/2011,Electricity (Programme),Finance & Commercial Group - Information and Workplace Strategies,BRITISH GAS BUSINESS SERVICES LTD,1016416,623.23
"Department of Business, Innovation and Skills","Department of Business, Innovation and Skills",24/01/2011,Electricity (Programme),Finance & Commercial Group - Information and Workplace Strategies,BRITISH GAS BUSINESS SERVICES LTD,1017012,154.13
"Department of Business, Innovation and Skills","Department of Business, Innovation and Skills",12/01/2011,Health & Safety Training,Finance & Commercial Group - Information and Workplace Strategies,BRITISH RED CROSS SOCIETY,1016059,253
"Department of Business, Innovation and Skills","Department of Business, Innovation and Skills",26/01/2011,Grants - Statutory - Current - Other,Knowledge and Innovation Group - RESEARCH BASE,BRITISH SCIENCE ASSOCIATION (THE BRITISH ASSOCIATION FOR THE ADVANCEMENT OF SCIENCE),1017543,66618
"Department of Business, Innovation and Skills","Department of Business, Innovation and Skills",26/01/2011,Grants - Statutory - Current - Other,Knowledge and Innovation Group - RESEARCH BASE,BRITISH SCIENCE ASSOCIATION (THE BRITISH ASSOCIATION FOR THE ADVANCEMENT OF SCIENCE),1017543,10000
"Department of Business, Innovation and Skills","Department of Business, Innovation and Skills",10/01/2011,Purchase of Completed Research,Business & Skills Group - Information Economy,BRITISH STANDARDS INSTITUTION (BSI),1015495,16130
"Department of Business, Innovation and Skills","Department of Business, Innovation and Skills",12/01/2011,Grants - Non Statutory - Current - Other,Knowledge and Innovation Group - Innovation,BRITISH STANDARDS INSTITUTION (BSI),1016044,52166.66
"Department of Business, Innovation and Skills","Department of Business, Innovation and Skills",12/01/2011,Grants - Non Statutory - Current - Other,Knowledge and Innovation Group - Innovation,BRITISH STANDARDS INSTITUTION (BSI),1016045,230222.22
"Department of Business, Innovation and Skills","Department of Business, Innovation and Skills",07/01/2011,Grants - Non Statutory - Current - Other,Knowledge and Innovation Group - Innovation,BRITISH STANDARDS INSTITUTION (BSI),1015692,4299.84
"Department of Business, Innovation and Skills","Department of Business, Innovation and Skills",26/01/2011,Grants - Non Statutory - Current - Other,Knowledge and Innovation Group - Innovation,BRITISH STANDARDS INSTITUTION (BSI),1017541,1539.25
"Department of Business, Innovation and Skills","Department of Business, Innovation and Skills",13/01/2011,Telecommunications,Chief Economic Advisor &BRE Group - Strategic Policy Analysis,BRITISH TELECOMMUNICATIONS plc,1016286,9
"Department of Business, Innovation and Skills","Department of Business, Innovation and Skills",13/01/2011,Telecommunications,Chief Economic Advisor &BRE Group - Strategic Policy Analysis,BRITISH TELECOMMUNICATIONS plc,1016286,58.22
"Department of Business, Innovation and Skills","Department of Business, Innovation and Skills",13/01/2011,Telecommunications,Chief Economic Advisor &BRE Group - Strategic Policy Analysis,BRITISH TELECOMMUNICATIONS plc,1016286,-9.29
"Department of Business, Innovation and Skills","Department of Business, Innovation and Skills",17/01/2011,Telecommunications,Finance & Commercial Group - Information and Workplace Strategies,BRITISH TELECOMMUNICATIONS plc,1016427,9
"Department of Business, Innovation and Skills","Department of Business, Innovation and Skills",12/01/2011,Telecommunications,Finance & Commercial Group - Information and Workplace Strategies,BRITISH TELECOMMUNICATIONS plc,1016090,123.34
"Department of Business, Innovation and Skills","Department of Business, Innovation and Skills",12/01/2011,Telecommunications,Finance & Commercial Group - Information and Workplace Strategies,BRITISH TELECOMMUNICATIONS plc,1016093,95.14
"Department of Business, Innovation and Skills","Department of Business, Innovation and Skills",17/01/2011,Telecommunications,Finance & Commercial Group - Information and Workplace Strategies,BRITISH TELECOMMUNICATIONS plc,1016427,56.35
"Department of Business, Innovation and Skills","Department of Business, Innovation and Skills",11/01/2011,Static Line Rental,Finance & Commercial Group - Finance Group,BRITISH TELECOMMUNICATIONS plc (BT),1015930,133.09
"Department of Business, Innovation and Skills","Department of Business, Innovation and Skills",21/01/2011,Static Line Rental,Finance & Commercial Group - Finance Group,BRITISH TELECOMMUNICATIONS plc (BT),1016914,18.96
"Department of Business, Innovation and Skills","Department of Business, Innovation and Skills",21/01/2011,Static Line Rental,Finance & Commercial Group - Finance Group,BRITISH TELECOMMUNICATIONS plc (BT),1016914,29.38
"Department of Business, Innovation and Skills","Department of Business, Innovation and Skills",21/01/2011,Other Telephone Costs,Finance & Commercial Group - Finance Group,BRITISH TELECOMMUNICATIONS plc (BT),1016914,3
"Department of Business, Innovation and Skills","Department of Business, Innovation and Skills",21/01/2011,Static Line Rental,Finance & Commercial Group - Finance Group,BRITISH TELECOMMUNICATIONS plc (BT),1016915,18.96
"Department of Business, Innovation and Skills","Department of Business, Innovation and Skills",21/01/2011,Other Telephone Costs,Finance & Commercial Group - Finance Group,BRITISH TELECOMMUNICATIONS plc (BT),1016915,3
"Department of Business, Innovation and Skills","Department of Business, Innovation and Skills",12/01/2011,Telecommunications,Finance & Commercial Group - Information and Workplace Strategies,BRITISH TELECOMMUNICATIONS plc (BT),1016019,657.12
"Department of Business, Innovation and Skills","Department of Business, Innovation and Skills",12/01/2011,Telecommunications,Finance & Commercial Group - Information and Workplace Strategies,BRITISH TELECOMMUNICATIONS plc (BT),1016083,2343.7
"Department of Business, Innovation and Skills","Department of Business, Innovation and Skills",12/01/2011,Telecommunications,Finance & Commercial Group - Information and Workplace Strategies,BRITISH TELECOMMUNICATIONS plc (BT),1016083,22.5
"Department of Business, Innovation and Skills","Department of Business, Innovation and Skills",12/01/2011,Telecommunications,Finance & Commercial Group - Information and Workplace Strategies,BRITISH TELECOMMUNICATIONS plc (BT),1016083,-36.84
"Department of Business, Innovation and Skills","Department of Business, Innovation and Skills",12/01/2011,Telecommunications,Finance & Commercial Group - Information and Workplace Strategies,BRITISH TELECOMMUNICATIONS plc (BT),1016114,58.22
"Department of Business, Innovation and Skills","Department of Business, Innovation and Skills",12/01/2011,Telecommunications,Finance & Commercial Group - Information and Workplace Strategies,BRITISH TELECOMMUNICATIONS plc (BT),1016114,9
"Department of Business, Innovation and Skills","Department of Business, Innovation and Skills",12/01/2011,Telecommunications,Finance & Commercial Group - Information and Workplace Strategies,BRITISH TELECOMMUNICATIONS plc (BT),1016114,-9.29
"Department of Business, Innovation and Skills","Department of Business, Innovation and Skills",12/01/2011,Telecommunications,Finance & Commercial Group - Information and Workplace Strategies,BRITISH TELECOMMUNICATIONS plc (BT),1016129,58.36
"Department of Business, Innovation and Skills","Department of Business, Innovation and Skills",12/01/2011,Telecommunications,Finance & Commercial Group - Information and Workplace Strategies,BRITISH TELECOMMUNICATIONS plc (BT),1016129,2.1
"Department of Business, Innovation and Skills","Department of Business, Innovation and Skills",12/01/2011,Telecommunications,Finance & Commercial Group - Information and Workplace Strategies,BRITISH TELECOMMUNICATIONS plc (BT),1016129,9
"Department of Business, Innovation and Skills","Department of Business, Innovation and Skills",12/01/2011,Telecommunications,Finance & Commercial Group - Information and Workplace Strategies,BRITISH TELECOMMUNICATIONS plc (BT),1016134,121.03
"Department of Business, Innovation and Skills","Department of Business, Innovation and Skills",12/01/2011,Telecommunications,Finance & Commercial Group - Information and Workplace Strategies,BRITISH TELECOMMUNICATIONS plc (BT),1016134,9
"Department of Business, Innovation and Skills","Department of Business, Innovation and Skills",12/01/2011,Telecommunications,Finance & Commercial Group - Information and Workplace Strategies,BRITISH TELECOMMUNICATIONS plc (BT),1016134,-20.64
"Department of Business, Innovation and Skills","Department of Business, Innovation and Skills",12/01/2011,Telecommunications,Finance & Commercial Group - Information and Workplace Strategies,BRITISH TELECOMMUNICATIONS plc (BT),1016143,168.59
"Department of Business, Innovation and Skills","Department of Business, Innovation and Skills",12/01/2011,ICT Business Specific Application Services,Finance & Commercial Group - Information and Workplace Strategies,BRITISH TELECOMMUNICATIONS plc (BT),1016151,70.1
"Department of Business, Innovation and Skills","Department of Business, Innovation and Skills",12/01/2011,ICT Business Specific Application Services,Finance & Commercial Group - Information and Workplace Strategies,BRITISH TELECOMMUNICATIONS plc (BT),1016151,9
"Department of Business, Innovation and Skills","Department of Business, Innovation and Skills",12/01/2011,ICT Business Specific Application Services,Finance & Commercial Group - Information and Workplace Strategies,BRITISH TELECOMMUNICATIONS plc (BT),1016151,-9.29
"Department of Business, Innovation and Skills","Department of Business, Innovation and Skills",12/01/2011,Telecommunications,Finance & Commercial Group - Information and Workplace Strategies,BRITISH TELECOMMUNICATIONS plc (BT),1016153,47.87
"Department of Business, Innovation and Skills","Department of Business, Innovation and Skills",12/01/2011,Telecommunications,Finance & Commercial Group - Information and Workplace Strategies,BRITISH TELECOMMUNICATIONS plc (BT),1016153,9
"Department of Business, Innovation and Skills","Department of Business, Innovation and Skills",12/01/2011,ICT Business Specific Application Services,Finance & Commercial Group - Information and Workplace Strategies,BRITISH TELECOMMUNICATIONS plc (BT),1016154,70.1
"Department of Business, Innovation and Skills","Department of Business, Innovation and Skills",12/01/2011,ICT Business Specific Application Services,Finance & Commercial Group - Information and Workplace Strategies,BRITISH TELECOMMUNICATIONS plc (BT),1016154,9
"Department of Business, Innovation and Skills","Department of Business, Innovation and Skills",12/01/2011,ICT Business Specific Application Services,Finance & Commercial Group - Information and Workplace Strategies,BRITISH TELECOMMUNICATIONS plc (BT),1016154,-9.29
"Department of Business, Innovation and Skills","Department of Business, Innovation and Skills",12/01/2011,Telecommunications,Finance & Commercial Group - Information and Workplace Strategies,BRITISH TELECOMMUNICATIONS plc (BT),1016157,47.06
"Department of Business, Innovation and Skills","Department of Business, Innovation and Skills",12/01/2011,Telecommunications,Finance & Commercial Group - Information and Workplace Strategies,BRITISH TELECOMMUNICATIONS plc (BT),1016157,9
"Department of Business, Innovation and Skills","Department of Business, Innovation and Skills",12/01/2011,Telecommunications,Finance & Commercial Group - Information and Workplace Strategies,BRITISH TELECOMMUNICATIONS plc (BT),1016159,160.98
"Department of Business, Innovation and Skills","Department of Business, Innovation and Skills",12/01/2011,Telecommunications,Finance & Commercial Group - Information and Workplace Strategies,BRITISH TELECOMMUNICATIONS plc (BT),1016161,160.98
"Department of Business, Innovation and Skills","Department of Business, Innovation and Skills",12/01/2011,Telecommunications,Finance & Commercial Group - Information and Workplace Strategies,BRITISH TELECOMMUNICATIONS plc (BT),1016163,300.81
"Department of Business, Innovation and Skills","Department of Business, Innovation and Skills",12/01/2011,Telecommunications,Finance & Commercial Group - Information and Workplace Strategies,BRITISH TELECOMMUNICATIONS plc (BT),1016164,47.22
"Department of Business, Innovation and Skills","Department of Business, Innovation and Skills",12/01/2011,Telecommunications,Finance & Commercial Group - Information and Workplace Strategies,BRITISH TELECOMMUNICATIONS plc (BT),1016164,9
"Department of Business, Innovation and Skills","Department of Business, Innovation and Skills",14/01/2011,ICT Business Specific Application Services,Finance & Commercial Group - Information and Workplace Strategies,BRITISH TELECOMMUNICATIONS plc (BT),1016258,70.1
"Department of Business, Innovation and Skills","Department of Business, Innovation and Skills",14/01/2011,ICT Business Specific Application Services,Finance & Commercial Group - Information and Workplace Strategies,BRITISH TELECOMMUNICATIONS plc (BT),1016258,9
"Department of Business, Innovation and Skills","Department of Business, Innovation and Skills",14/01/2011,ICT Business Specific Application Services,Finance & Commercial Group - Information and Workplace Strategies,BRITISH TELECOMMUNICATIONS plc (BT),1016258,-9.26
"Department of Business, Innovation and Skills","Department of Business, Innovation and Skills",18/01/2011,Telecommunications,Finance & Commercial Group - Information and Workplace Strategies,BRITISH TELECOMMUNICATIONS plc (BT),1016324,58.22
"Department of Business, Innovation and Skills","Department of Business, Innovation and Skills",18/01/2011,Telecommunications,Finance & Commercial Group - Information and Workplace Strategies,BRITISH TELECOMMUNICATIONS plc (BT),1016324,9
"Department of Business, Innovation and Skills","Department of Business, Innovation and Skills",18/01/2011,Telecommunications,Finance & Commercial Group - Information and Workplace Strategies,BRITISH TELECOMMUNICATIONS plc (BT),1016324,-9.29
"Department of Business, Innovation and Skills","Department of Business, Innovation and Skills",25/01/2011,Telecommunications,Finance & Commercial Group - Information and Workplace Strategies,BRITISH TELECOMMUNICATIONS plc (BT),1016623,58.22
"Department of Business, Innovation and Skills","Department of Business, Innovation and Skills",25/01/2011,Telecommunications,Finance & Commercial Group - Information and Workplace Strategies,BRITISH TELECOMMUNICATIONS plc (BT),1016623,9
"Department of Business, Innovation and Skills","Department of Business, Innovation and Skills",25/01/2011,Telecommunications,Finance & Commercial Group - Information and Workplace Strategies,BRITISH TELECOMMUNICATIONS plc (BT),1016623,-9.29
"Department of Business, Innovation and Skills","Department of Business, Innovation and Skills",18/01/2011,Telecommunications,Finance & Commercial Group - Information and Workplace Strategies,BRITISH TELECOMMUNICATIONS plc (BT),1016625,58.22
"Department of Business, Innovation and Skills","Department of Business, Innovation and Skills",18/01/2011,Telecommunications,Finance & Commercial Group - Information and Workplace Strategies,BRITISH TELECOMMUNICATIONS plc (BT),1016625,9
"Department of Business, Innovation and Skills","Department of Business, Innovation and Skills",18/01/2011,Telecommunications,Finance & Commercial Group - Information and Workplace Strategies,BRITISH TELECOMMUNICATIONS plc (BT),1016625,-9.29
"Department of Business, Innovation and Skills","Department of Business, Innovation and Skills",18/01/2011,Telecommunications,Finance & Commercial Group - Information and Workplace Strategies,BRITISH TELECOMMUNICATIONS plc (BT),1016627,131.83
"Department of Business, Innovation and Skills","Department of Business, Innovation and Skills",18/01/2011,Telecommunications,Finance & Commercial Group - Information and Workplace Strategies,BRITISH TELECOMMUNICATIONS plc (BT),1016627,22.5
"Department of Business, Innovation and Skills","Department of Business, Innovation and Skills",18/01/2011,Telecommunications,Finance & Commercial Group - Information and Workplace Strategies,BRITISH TELECOMMUNICATIONS plc (BT),1016627,-21
"Department of Business, Innovation and Skills","Department of Business, Innovation and Skills",18/01/2011,Telecommunications,Finance & Commercial Group - Information and Workplace Strategies,BRITISH TELECOMMUNICATIONS plc (BT),1016632,58.22
"Department of Business, Innovation and Skills","Department of Business, Innovation and Skills",18/01/2011,Telecommunications,Finance & Commercial Group - Information and Workplace Strategies,BRITISH TELECOMMUNICATIONS plc (BT),1016632,9
"Department of Business, Innovation and Skills","Department of Business, Innovation and Skills",18/01/2011,Telecommunications,Finance & Commercial Group - Information and Workplace Strategies,BRITISH TELECOMMUNICATIONS plc (BT),1016632,-9.29
"Department of Business, Innovation and Skills","Department of Business, Innovation and Skills",18/01/2011,Telecommunications,Finance & Commercial Group - Information and Workplace Strategies,BRITISH TELECOMMUNICATIONS plc (BT),1016637,58.22
"Department of Business, Innovation and Skills","Department of Business, Innovation and Skills",18/01/2011,Telecommunications,Finance & Commercial Group - Information and Workplace Strategies,BRITISH TELECOMMUNICATIONS plc (BT),1016637,22.5
"Department of Business, Innovation and Skills","Department of Business, Innovation and Skills",18/01/2011,Telecommunications,Finance & Commercial Group - Information and Workplace Strategies,BRITISH TELECOMMUNICATIONS plc (BT),1016637,-9.29
"Department of Business, Innovation and Skills","Department of Business, Innovation and Skills",18/01/2011,Telecommunications,Finance & Commercial Group - Information and Workplace Strategies,BRITISH TELECOMMUNICATIONS plc (BT),1016644,58.22
"Department of Business, Innovation and Skills","Department of Business, Innovation and Skills",18/01/2011,Telecommunications,Finance & Commercial Group - Information and Workplace Strategies,BRITISH TELECOMMUNICATIONS plc (BT),1016644,9
"Department of Business, Innovation and Skills","Department of Business, Innovation and Skills",18/01/2011,Telecommunications,Finance & Commercial Group - Information and Workplace Strategies,BRITISH TELECOMMUNICATIONS plc (BT),1016644,-9.29
"Department of Business, Innovation and Skills","Department of Business, Innovation and Skills",18/01/2011,Telecommunications,Finance & Commercial Group - Information and Workplace Strategies,BRITISH TELECOMMUNICATIONS plc (BT),1016647,57.25
"Department of Business, Innovation and Skills","Department of Business, Innovation and Skills",18/01/2011,Telecommunications,Finance & Commercial Group - Information and Workplace Strategies,BRITISH TELECOMMUNICATIONS plc (BT),1016647,9
"Department of Business, Innovation and Skills","Department of Business, Innovation and Skills",18/01/2011,Telecommunications,Finance & Commercial Group - Information and Workplace Strategies,BRITISH TELECOMMUNICATIONS plc (BT),1016647,32.18
"Department of Business, Innovation and Skills","Department of Business, Innovation and Skills",21/01/2011,ICT Infrastructure Specific Service,Finance & Commercial Group - Information and Workplace Strategies,BRITISH TELECOMMUNICATIONS plc (BT),1016883,136.51
"Department of Business, Innovation and Skills","Department of Business, Innovation and Skills",21/01/2011,ICT Infrastructure Specific Service,Finance & Commercial Group - Information and Workplace Strategies,BRITISH TELECOMMUNICATIONS plc (BT),1016883,4.5
"Department of Business, Innovation and Skills","Department of Business, Innovation and Skills",27/01/2011,Telecommunications,Finance & Commercial Group - Information and Workplace Strategies,BRITISH TELECOMMUNICATIONS plc (BT),1017653,611.65
"Department of Business, Innovation and Skills","Department of Business, Innovation and Skills",27/01/2011,Telecommunications,Finance & Commercial Group - Information and Workplace Strategies,BRITISH TELECOMMUNICATIONS plc (BT),1017653,9
"Department of Business, Innovation and Skills","Department of Business, Innovation and Skills",05/01/2011,Static Line Rental,"Legal, People & Communications Group - Legal",BRITISH TELECOMMUNICATIONS plc (BT),1015384,9
"Department of Business, Innovation and Skills","Department of Business, Innovation and Skills",05/01/2011,Static Line Rental,"Legal, People & Communications Group - Legal",BRITISH TELECOMMUNICATIONS plc (BT),1015384,64.45
"Department of Business, Innovation and Skills","Department of Business, Innovation and Skills",18/01/2011,Static Line Rental,"Legal, People & Communications Group - Legal",BRITISH TELECOMMUNICATIONS plc (BT),1016618,9
"Department of Business, Innovation and Skills","Department of Business, Innovation and Skills",18/01/2011,Static Line Rental,"Legal, People & Communications Group - Legal",BRITISH TELECOMMUNICATIONS plc (BT),1016618,0.01
"Department of Business, Innovation and Skills","Department of Business, Innovation and Skills",18/01/2011,Static Line Rental,"Legal, People & Communications Group - Legal",BRITISH TELECOMMUNICATIONS plc (BT),1016618,59.02
"Department of Business, Innovation and Skills","Department of Business, Innovation and Skills",26/01/2011,Static Line Rental,Market and Frameworks Group - Employment Relations,BRITISH TELECOMMUNICATIONS plc (BT),4021385,1.14
"Department of Business, Innovation and Skills","Department of Business, Innovation and Skills",26/01/2011,Static Line Rental,Market and Frameworks Group - Employment Relations,BRITISH TELECOMMUNICATIONS plc (BT),4021385,-9.21
"Department of Business, Innovation and Skills","Department of Business, Innovation and Skills",26/01/2011,Static Line Rental,Market and Frameworks Group - Employment Relations,BRITISH TELECOMMUNICATIONS plc (BT),4021385,22.5
"Department of Business, Innovation and Skills","Department of Business, Innovation and Skills",26/01/2011,Static Line Rental,Market and Frameworks Group - Employment Relations,BRITISH TELECOMMUNICATIONS plc (BT),4021385,58.22
"Department of Business, Innovation and Skills","Department of Business, Innovation and Skills",12/01/2011,Telecommunications,Market and Frameworks Group - Europe and World Trade Directorates,BRITISH TELECOMMUNICATIONS plc (BT),1015751,107.96
"Department of Business, Innovation and Skills","Department of Business, Innovation and Skills",17/01/2011,Telecommunications,Market and Frameworks Group - Europe and World Trade Directorates,BRITISH TELECOMMUNICATIONS plc (BT),1016256,58.22
"Department of Business, Innovation and Skills","Department of Business, Innovation and Skills",17/01/2011,Telecommunications,Market and Frameworks Group - Europe and World Trade Directorates,BRITISH TELECOMMUNICATIONS plc (BT),1016256,-9.29
"Department of Business, Innovation and Skills","Department of Business, Innovation and Skills",17/01/2011,Telecommunications,Market and Frameworks Group - Europe and World Trade Directorates,BRITISH TELECOMMUNICATIONS plc (BT),1016256,9
"Department of Business, Innovation and Skills","Department of Business, Innovation and Skills",17/01/2011,Grants - Non Statutory - Current - Other,Market and Frameworks Group - Employment Relations,BROADCASTING ENTERTAINMENT CINEMATOGRAPH AND THEATRE UNION (BECTU),1016339,23204
"Department of Business, Innovation and Skills","Department of Business, Innovation and Skills",06/01/2011,Hire of Agency Staff (Clerical/Secretariat/Other),Finance & Commercial Group - Information and Workplace Strategies,BROOK STREET (UK) LTD,1015186,649.47
"Department of Business, Innovation and Skills","Department of Business, Innovation and Skills",07/01/2011,Hire of Agency Staff (Clerical/Secretariat/Other),Finance & Commercial Group - Information and Workplace Strategies,BROOK STREET (UK) LTD,1015535,403.12
"Department of Business, Innovation and Skills","Department of Business, Innovation and Skills",17/01/2011,Hire of Agency Staff (Clerical/Secretariat/Other),Finance & Commercial Group - Information and Workplace Strategies,BROOK STREET (UK) LTD,1016301,663.29
"Department of Business, Innovation and Skills","Department of Business, Innovation and Skills",28/01/2011,Hire of Agency Staff (Clerical/Secretariat/Other),Finance & Commercial Group - Information and Workplace Strategies,BROOK STREET (UK) LTD,1017663,823.39
"Department of Business, Innovation and Skills","Department of Business, Innovation and Skills",06/01/2011,Hire of Agency Staff (Clerical/Secretariat/Other),"Legal, People & Communications Group - HRCM - Human Resources and Change Management Directorate",BROOK STREET (UK) LTD,1015530,330.33
"Department of Business, Innovation and Skills","Department of Business, Innovation and Skills",06/01/2011,Hire of Agency Staff (Clerical/Secretariat/Other),"Legal, People & Communications Group - HRCM - Human Resources and Change Management Directorate",BROOK STREET (UK) LTD,1015531,179.16
"Department of Business, Innovation and Skills","Department of Business, Innovation and Skills",06/01/2011,Hire of Agency Staff (Clerical/Secretariat/Other),"Legal, People & Communications Group - HRCM - Human Resources and Change Management Directorate",BROOK STREET (UK) LTD,1015532,179.16
"Department of Business, Innovation and Skills","Department of Business, Innovation and Skills",06/01/2011,Hire of Agency Staff (Clerical/Secretariat/Other),"Legal, People & Communications Group - HRCM - Human Resources and Change Management Directorate",BROOK STREET (UK) LTD,1015533,442.31
"Department of Business, Innovation and Skills","Department of Business, Innovation and Skills",14/01/2011,Hire of Agency Staff (Clerical/Secretariat/Other),"Legal, People & Communications Group - HRCM - Human Resources and Change Management Directorate",BROOK STREET (UK) LTD,1016299,405.97
"Department of Business, Innovation and Skills","Department of Business, Innovation and Skills",14/01/2011,Hire of Agency Staff (Clerical/Secretariat/Other),"Legal, People & Communications Group - HRCM - Human Resources and Change Management Directorate",BROOK STREET (UK) LTD,1016300,343.08
"Department of Business, Innovation and Skills","Department of Business, Innovation and Skills",21/01/2011,Hire of Agency Staff (Clerical/Secretariat/Other),"Legal, People & Communications Group - HRCM - Human Resources and Change Management Directorate",BROOK STREET (UK) LTD,1016826,414.55
"Department of Business, Innovation and Skills","Department of Business, Innovation and Skills",28/01/2011,Hire of Agency Staff (Clerical/Secretariat/Other),"Legal, People & Communications Group - HRCM - Human Resources and Change Management Directorate",BROOK STREET (UK) LTD,1017722,423.13
"Department of Business, Innovation and Skills","Department of Business, Innovation and Skills",28/01/2011,Hire of Agency Staff (Clerical/Secretariat/Other),"Legal, People & Communications Group - HRCM - Human Resources and Change Management Directorate",BROOK STREET (UK) LTD,1017724,377.39
"Department of Business, Innovation and Skills","Department of Business, Innovation and Skills",07/01/2011,Hire of Agency Staff (Professional/Management),Ministerial and Parliamentary Support Team - Ministerial and Parliamentary Support Team,BROOK STREET (UK) LTD,1015599,634.15
"Department of Business, Innovation and Skills","Department of Business, Innovation and Skills",07/01/2011,Hire of Agency Staff (Professional/Management),Ministerial and Parliamentary Support Team - Ministerial and Parliamentary Support Team,BROOK STREET (UK) LTD,1015600,935.1
"Department of Business, Innovation and Skills","Department of Business, Innovation and Skills",12/01/2011,Hire of Agency Staff (Professional/Management),Ministerial and Parliamentary Support Team - Ministerial and Parliamentary Support Team,BROOK STREET (UK) LTD,1016055,300.95
"Department of Business, Innovation and Skills","Department of Business, Innovation and Skills",18/01/2011,Hire of Agency Staff (Professional/Management),Ministerial and Parliamentary Support Team - Ministerial and Parliamentary Support Team,BROOK STREET (UK) LTD,1016643,757.4
"Department of Business, Innovation and Skills","Department of Business, Innovation and Skills",25/01/2011,Hire of Agency Staff (Professional/Management),Ministerial and Parliamentary Support Team - Ministerial and Parliamentary Support Team,BROOK STREET (UK) LTD,1017159,1064.76
"Department of Business, Innovation and Skills","Department of Business, Innovation and Skills",06/01/2011,Hire of Agency Staff (Clerical/Secretariat/Other),Shareholder Executive - Shareholder Executive,BROOK STREET (UK) LTD,1015183,890.22
"Department of Business, Innovation and Skills","Department of Business, Innovation and Skills",13/01/2011,Hire of Agency Staff (Clerical/Secretariat/Other),Shareholder Executive - Shareholder Executive,BROOK STREET (UK) LTD,1016272,448.38
"Department of Business, Innovation and Skills","Department of Business, Innovation and Skills",13/01/2011,Hire of Agency Staff (Clerical/Secretariat/Other),Shareholder Executive - Shareholder Executive,BROOK STREET (UK) LTD,1016275,823.39
"Department of Business, Innovation and Skills","Department of Business, Innovation and Skills",21/01/2011,Hire of Agency Staff (Clerical/Secretariat/Other),Shareholder Executive - Shareholder Executive,BROOK STREET (UK) LTD,1016827,748.88
"Department of Business, Innovation and Skills","Department of Business, Innovation and Skills",27/01/2011,Hire of Agency Staff (Clerical/Secretariat/Other),Shareholder Executive - Shareholder Executive,BROOK STREET (UK) LTD,1017658,791.82
"Department of Business, Innovation and Skills","Department of Business, Innovation and Skills",27/01/2011,Hire of Agency Staff (Clerical/Secretariat/Other),Shareholder Executive - Shareholder Executive,BROOK STREET (UK) LTD,1017667,1040.68
"Department of Business, Innovation and Skills","Department of Business, Innovation and Skills",06/01/2011,Hire of Agency Staff (NDPB use only),Shareholder Executive - Shareholder Executive,BROOK STREET (UK) LTD,1015536,392.33
"Department of Business, Innovation and Skills","Department of Business, Innovation and Skills",21/01/2011,Hire of Agency Staff (NDPB use only),Shareholder Executive - Shareholder Executive,BROOK STREET (UK) LTD,1016828,152.64
"Department of Business, Innovation and Skills","Department of Business, Innovation and Skills",28/01/2011,Hire of Agency Staff (NDPB use only),Shareholder Executive - Shareholder Executive,BROOK STREET (UK) LTD,1017762,810.9
"Department of Business, Innovation and Skills","Department of Business, Innovation and Skills",19/01/2011,Recruitment Consultancy Costs,Market and Frameworks Group - Consumer and Competition Policy,BROOKLEIGH CONSULTING LTD,1016693,1040
"Department of Business, Innovation and Skills","Department of Business, Innovation and Skills",19/01/2011,Recruitment Consultancy Costs,Market and Frameworks Group - Consumer and Competition Policy,BROOKLEIGH CONSULTING LTD,1016693,0.05
"Department of Business, Innovation and Skills","Department of Business, Innovation and Skills",11/01/2011,Criminal Law and Prosecution Work,"Legal, People & Communications Group - Legal",BROWNE JACOBSON,1015805,482.8
"Department of Business, Innovation and Skills","Department of Business, Innovation and Skills",11/01/2011,Criminal Law and Prosecution Work,"Legal, People & Communications Group - Legal",BROWNE JACOBSON,1015819,934.2
"Department of Business, Innovation and Skills","Department of Business, Innovation and Skills",27/01/2011,Criminal Law and Prosecution Work,"Legal, People & Communications Group - Legal",BROWNE JACOBSON,1017567,16.66
"Department of Business, Innovation and Skills","Department of Business, Innovation and Skills",10/01/2011,Hotels Overseas,Market and Frameworks Group - Consumer and Competition Policy,BRUSSELS EUROPA,1015291,176.95
"Department of Business, Innovation and Skills","Department of Business, Innovation and Skills",10/01/2011,Hotels Overseas,Market and Frameworks Group - Europe and World Trade Directorates,BRUSSELS EUROPA,1015292,176.95
"Department of Business, Innovation and Skills","Department of Business, Innovation and Skills",10/01/2011,Hotels Overseas,Market and Frameworks Group - Europe and World Trade Directorates,BRUSSELS EUROPA,1015293,159.77
"Department of Business, Innovation and Skills","Department of Business, Innovation and Skills",28/01/2011,Hotels Overseas,Market and Frameworks Group - Europe and World Trade Directorates,BRUSSELS EUROPA,1017497,142.59
"Department of Business, Innovation and Skills","Department of Business, Innovation and Skills",28/01/2011,Hotels Overseas,Market and Frameworks Group - Europe and World Trade Directorates,BRUSSELS EUROPA,1017498,140.88
"Department of Business, Innovation and Skills","Department of Business, Innovation and Skills",11/01/2011,Other Telephone Costs,Business & Skills Group - Economic Development Directorate,BT CONFERENCING,1015783,39.83
"Department of Business, Innovation and Skills","Department of Business, Innovation and Skills",17/01/2011,Other Telephone Costs,Business & Skills Group - USG Admin,BT CONFERENCING,1016119,210.74
"Department of Business, Innovation and Skills","Department of Business, Innovation and Skills",18/01/2011,Publications,Knowledge and Innovation Group - Innovation,BT CONFERENCING,1016326,68.89
"Department of Business, Innovation and Skills","Department of Business, Innovation and Skills",19/01/2011,Telecommunications,Business & Skills Group - Advanced Manufacturing Industries,BT UK BUSINESS ACCOUNTS,1016714,58.22
"Department of Business, Innovation and Skills","Department of Business, Innovation and Skills",19/01/2011,Telecommunications,Business & Skills Group - Advanced Manufacturing Industries,BT UK BUSINESS ACCOUNTS,1016714,9
"Department of Business, Innovation and Skills","Department of Business, Innovation and Skills",19/01/2011,Telecommunications,Business & Skills Group - Advanced Manufacturing Industries,BT UK BUSINESS ACCOUNTS,1016714,-9.29
"Department of Business, Innovation and Skills","Department of Business, Innovation and Skills",07/01/2011,Static Line Rental,Business & Skills Group - USG Admin,BT UK BUSINESS ACCOUNTS,1015625,112.73
"Department of Business, Innovation and Skills","Department of Business, Innovation and Skills",28/01/2011,Static Line Rental,Business & Skills Group - USG Admin,BT UK BUSINESS ACCOUNTS,1017743,55.7
"Department of Business, Innovation and Skills","Department of Business, Innovation and Skills",28/01/2011,Static Call Charges,Business & Skills Group - USG Admin,BT UK BUSINESS ACCOUNTS,1017743,4.24
"Department of Business, Innovation and Skills","Department of Business, Innovation and Skills",28/01/2011,Other Telephone Costs,Business & Skills Group - USG Admin,BT UK BUSINESS ACCOUNTS,1017743,9
"Department of Business, Innovation and Skills","Department of Business, Innovation and Skills",14/01/2011,ICT Maintenance & Upkeep,Finance & Commercial Group - Information and Workplace Strategies,BT UK BUSINESS ACCOUNTS,1016284,58.22
"Department of Business, Innovation and Skills","Department of Business, Innovation and Skills",14/01/2011,ICT Maintenance & Upkeep,Finance & Commercial Group - Information and Workplace Strategies,BT UK BUSINESS ACCOUNTS,1016284,9
"Department of Business, Innovation and Skills","Department of Business, Innovation and Skills",14/01/2011,ICT Maintenance & Upkeep,Finance & Commercial Group - Information and Workplace Strategies,BT UK BUSINESS ACCOUNTS,1016284,-9.29
"Department of Business, Innovation and Skills","Department of Business, Innovation and Skills",14/01/2011,Research & Development Expenditure (Programme),Knowledge and Innovation Group - GOVERNMENT OFFICE FOR SCIENCE,BT UK BUSINESS ACCOUNTS,1016257,58.22
"Department of Business, Innovation and Skills","Department of Business, Innovation and Skills",14/01/2011,Research & Development Expenditure (Programme),Knowledge and Innovation Group - GOVERNMENT OFFICE FOR SCIENCE,BT UK BUSINESS ACCOUNTS,1016257,-9.29
"Department of Business, Innovation and Skills","Department of Business, Innovation and Skills",14/01/2011,Research & Development Expenditure (Programme),Knowledge and Innovation Group - GOVERNMENT OFFICE FOR SCIENCE,BT UK BUSINESS ACCOUNTS,1016257,9
"Department of Business, Innovation and Skills","Department of Business, Innovation and Skills",17/01/2011,Research & Development Expenditure (Programme),Knowledge and Innovation Group - GOVERNMENT OFFICE FOR SCIENCE,BT UK BUSINESS ACCOUNTS,1016398,108
"Department of Business, Innovation and Skills","Department of Business, Innovation and Skills",17/01/2011,Outsourced Programme Management Services,Knowledge and Innovation Group - Innovation,BUSINESS EVOLUTION ADVANCEMENT & TRAINING LTD,1016426,3016.03
"Department of Business, Innovation and Skills","Department of Business, Innovation and Skills",17/01/2011,Other Training Costs (Programme),"Legal, People & Communications Group - Priority Projects Drectorate",BUSINESS EVOLUTION ADVANCEMENT & TRAINING LTD,1016407,1739
"Department of Business, Innovation and Skills","Department of Business, Innovation and Skills",12/01/2011,Other Training Costs,"Legal, People & Communications Group - HRCM - Human Resources and Change Management Directorate",BUSINESS IN THE COMMUNITY,1015835,2500
"Department of Business, Innovation and Skills","Department of Business, Innovation and Skills",18/01/2011,Season Ticket and Bicycle Loans,"Legal, People & Communications Group - HRCM - Human Resources and Change Management Directorate",CABINET OFFICE,1016399,2574
"Department of Business, Innovation and Skills","Department of Business, Innovation and Skills",20/01/2011,Payment-Recovery of Overpayment re Exits,"Legal, People & Communications Group - HRCM - Human Resources and Change Management Directorate",CABINET OFFICE,1016863,1103737.07
"Department of Business, Innovation and Skills","Department of Business, Innovation and Skills",20/01/2011,Payment-Recovery of Overpayment re Exits,"Legal, People & Communications Group - HRCM - Human Resources and Change Management Directorate",CABINET OFFICE,1016865,112259.23
"Department of Business, Innovation and Skills","Department of Business, Innovation and Skills",20/01/2011,Payment-Recovery of Overpayment re Exits,"Legal, People & Communications Group - HRCM - Human Resources and Change Management Directorate",CABINET OFFICE,1016867,11208.49
"Department of Business, Innovation and Skills","Department of Business, Innovation and Skills",20/01/2011,Payment-Recovery of Overpayment re Exits,"Legal, People & Communications Group - HRCM - Human Resources and Change Management Directorate",CABINET OFFICE,1016868,3545.11
"Department of Business, Innovation and Skills","Department of Business, Innovation and Skills",20/01/2011,Payment-Recovery of Overpayment re Exits,"Legal, People & Communications Group - HRCM - Human Resources and Change Management Directorate",CABINET OFFICE,1016870,1780.33
"Department of Business, Innovation and Skills","Department of Business, Innovation and Skills",20/01/2011,Payment-Recovery of Overpayment re Exits,"Legal, People & Communications Group - HRCM - Human Resources and Change Management Directorate",CABINET OFFICE,1016872,499.25
"Department of Business, Innovation and Skills","Department of Business, Innovation and Skills",20/01/2011,Payment-Recovery of Overpayment re Exits,"Legal, People & Communications Group - HRCM - Human Resources and Change Management Directorate",CABINET OFFICE,1016873,518.82
"Department of Business, Innovation and Skills","Department of Business, Innovation and Skills",13/01/2011,Other External Recruitment Costs (Staff),"Legal, People & Communications Group - HRCM - Human Resources and Change Management Directorate",CABINET OFFICE,1016333,19000
"Department of Business, Innovation and Skills","Department of Business, Innovation and Skills",12/01/2011,GTN Services,Finance & Commercial Group - Information and Workplace Strategies,CABLE & WIRELESS COMMUNICATIONS,1016167,2781.44
"Department of Business, Innovation and Skills","Department of Business, Innovation and Skills",12/01/2011,GTN Services,Finance & Commercial Group - Information and Workplace Strategies,CABLE & WIRELESS COMMUNICATIONS,1016168,38.59
"Department of Business, Innovation and Skills","Department of Business, Innovation and Skills",12/01/2011,GTN Services,Finance & Commercial Group - Information and Workplace Strategies,CABLE & WIRELESS COMMUNICATIONS,1016169,603.86
"Department of Business, Innovation and Skills","Department of Business, Innovation and Skills",27/01/2011,GTN Services,Finance & Commercial Group - Information and Workplace Strategies,CABLE & WIRELESS COMMUNICATIONS,1017683,1853.26
"Department of Business, Innovation and Skills","Department of Business, Innovation and Skills",12/01/2011,ICT Infrastructure Specific Service,Finance & Commercial Group - Information and Workplace Strategies,CABLE & WIRELESS UK,1015595,81812.5
"Department of Business, Innovation and Skills","Department of Business, Innovation and Skills",18/01/2011,Catering Supplies (Programme),Business & Skills Group - Government Skills,CAFE AVOCA,1016534,57
"Department of Business, Innovation and Skills","Department of Business, Innovation and Skills",05/01/2011,Criminal Law and Prosecution Work,"Legal, People & Communications Group - Legal",CAMERON BROWN,1015347,282
"Department of Business, Innovation and Skills","Department of Business, Innovation and Skills",05/01/2011,Criminal Law and Prosecution Work,"Legal, People & Communications Group - Legal",CAMERON BROWN,1015348,452.38
"Department of Business, Innovation and Skills","Department of Business, Innovation and Skills",05/01/2011,Criminal Law and Prosecution Work,"Legal, People & Communications Group - Legal",CAMERON BROWN,1015349,893
"Department of Business, Innovation and Skills","Department of Business, Innovation and Skills",05/01/2011,Criminal Law and Prosecution Work,"Legal, People & Communications Group - Legal",CAMERON BROWN,1015350,1186.75
"Department of Business, Innovation and Skills","Department of Business, Innovation and Skills",18/01/2011,Criminal Law and Prosecution Work,"Legal, People & Communications Group - Legal",CAMERON BROWN,1016419,1560
"Department of Business, Innovation and Skills","Department of Business, Innovation and Skills",13/01/2011,Air Fares (Programme),Knowledge and Innovation Group - RESEARCH BASE,CAMPDEN GROUP SERVICES LTD,1016303,109.57
"Department of Business, Innovation and Skills","Department of Business, Innovation and Skills",13/01/2011,Taxis (Programme),Knowledge and Innovation Group - RESEARCH BASE,CAMPDEN GROUP SERVICES LTD,1016303,27.5
"Department of Business, Innovation and Skills","Department of Business, Innovation and Skills",13/01/2011,Mileage Allowances (Programme),Knowledge and Innovation Group - RESEARCH BASE,CAMPDEN GROUP SERVICES LTD,1016303,271.2
"Department of Business, Innovation and Skills","Department of Business, Innovation and Skills",13/01/2011,Subsistence Payments (Programme),Knowledge and Innovation Group - RESEARCH BASE,CAMPDEN GROUP SERVICES LTD,1016303,32.15
"Department of Business, Innovation and Skills","Department of Business, Innovation and Skills",13/01/2011,Rail Fares - Overseas (Programme),Knowledge and Innovation Group - RESEARCH BASE,CAMPDEN GROUP SERVICES LTD,1016303,119.8
"Department of Business, Innovation and Skills","Department of Business, Innovation and Skills",13/01/2011,Air Fares  - Overseas (Programme),Knowledge and Innovation Group - RESEARCH BASE,CAMPDEN GROUP SERVICES LTD,1016303,1943.77
"Department of Business, Innovation and Skills","Department of Business, Innovation and Skills",13/01/2011,Taxis- Overseas (Programme),Knowledge and Innovation Group - RESEARCH BASE,CAMPDEN GROUP SERVICES LTD,1016303,5.96
"Department of Business, Innovation and Skills","Department of Business, Innovation and Skills",13/01/2011,Hotels- Overseas  (Programme),Knowledge and Innovation Group - RESEARCH BASE,CAMPDEN GROUP SERVICES LTD,1016303,1630.9
"Department of Business, Innovation and Skills","Department of Business, Innovation and Skills",13/01/2011,Subsistence Payments- Overseas (Programme),Knowledge and Innovation Group - RESEARCH BASE,CAMPDEN GROUP SERVICES LTD,1016303,181.85
"Department of Business, Innovation and Skills","Department of Business, Innovation and Skills",13/01/2011,Other Overseas T&S (Programme),Knowledge and Innovation Group - RESEARCH BASE,CAMPDEN GROUP SERVICES LTD,1016303,174.58
"Department of Business, Innovation and Skills","Department of Business, Innovation and Skills",13/01/2011,Entertaining Overseas (Programme),Knowledge and Innovation Group - RESEARCH BASE,CAMPDEN GROUP SERVICES LTD,1016303,205.89
"Department of Business, Innovation and Skills","Department of Business, Innovation and Skills",13/01/2011,Mobile Call Charges (Programme),Knowledge and Innovation Group - RESEARCH BASE,CAMPDEN GROUP SERVICES LTD,1016303,131.34
"Department of Business, Innovation and Skills","Department of Business, Innovation and Skills",10/01/2011,Standard Desktop Plus Services,Finance & Commercial Group - Information and Workplace Strategies,CAPGEMINI UK plc,1015127,99794.64
"Department of Business, Innovation and Skills","Department of Business, Innovation and Skills",18/01/2011,ICT Maintenance & Upkeep,Finance & Commercial Group - Information and Workplace Strategies,CAPGEMINI UK plc,1015129,130.95
"Department of Business, Innovation and Skills","Department of Business, Innovation and Skills",19/01/2011,ICT Maintenance & Upkeep,Finance & Commercial Group - Information and Workplace Strategies,CAPGEMINI UK plc,1016666,1915.18
"Department of Business, Innovation and Skills","Department of Business, Innovation and Skills",19/01/2011,ICT Maintenance & Upkeep,Finance & Commercial Group - Information and Workplace Strategies,CAPGEMINI UK plc,1016669,1915.18
"Department of Business, Innovation and Skills","Department of Business, Innovation and Skills",27/01/2011,Outsourced Programme Management Services,Business & Skills Group - Advanced Manufacturing Industries,CAPITA SYMONDS LTD,1017590,747
"Department of Business, Innovation and Skills","Department of Business, Innovation and Skills",13/01/2011,Grant in Aid - Current -Other,Business & Skills Group - Enterprise Directorate,CAPITAL FOR ENTERPRISE LTD,1016200,537000
"Department of Business, Innovation and Skills","Department of Business, Innovation and Skills",13/01/2011,Grant in Aid - Current -Other,Business & Skills Group - Enterprise Directorate,CAPITAL FOR ENTERPRISE LTD,1016200,239500
"Department of Business, Innovation and Skills","Department of Business, Innovation and Skills",13/01/2011,Financial Advice and Services,Knowledge and Innovation Group - Innovation,CAPITAL FOR ENTERPRISE LTD,1007704,-21024.98
"Department of Business, Innovation and Skills","Department of Business, Innovation and Skills",19/01/2011,Financial Advice and Services,Knowledge and Innovation Group - Innovation,CAPITAL FOR ENTERPRISE LTD,1014403,8333.33
"Department of Business, Innovation and Skills","Department of Business, Innovation and Skills",28/01/2011,Financial Advice and Services,Knowledge and Innovation Group - Innovation,CAPITAL FOR ENTERPRISE LTD,1017481,8333.33
"Department of Business, Innovation and Skills","Department of Business, Innovation and Skills",18/01/2011,Payments to Barclays for Carlson Wagonlit Travel Contract,Finance & Commercial Group - Finance Group,CARLSON WAGONLIT TRAVEL UK LTD,1014375,23.5
"Department of Business, Innovation and Skills","Department of Business, Innovation and Skills",18/01/2011,Payments to Barclays for Carlson Wagonlit Travel Contract,Finance & Commercial Group - Finance Group,CARLSON WAGONLIT TRAVEL UK LTD,1014375,-488.85
"Department of Business, Innovation and Skills","Department of Business, Innovation and Skills",18/01/2011,Payments to Barclays for Carlson Wagonlit Travel Contract,Finance & Commercial Group - Finance Group,CARLSON WAGONLIT TRAVEL UK LTD,1015353,11.75
"Department of Business, Innovation and Skills","Department of Business, Innovation and Skills",18/01/2011,Payments to Barclays for Carlson Wagonlit Travel Contract,Finance & Commercial Group - Finance Group,CARLSON WAGONLIT TRAVEL UK LTD,1015353,-35.18
"Department of Business, Innovation and Skills","Department of Business, Innovation and Skills",18/01/2011,Payments to Barclays for Carlson Wagonlit Travel Contract,Finance & Commercial Group - Finance Group,CARLSON WAGONLIT TRAVEL UK LTD,1016572,1737.09
"Department of Business, Innovation and Skills","Department of Business, Innovation and Skills",11/01/2011,Criminal Law and Prosecution Work,"Legal, People & Communications Group - Legal",CARPE-DATUM,1015792,3051.48
"Department of Business, Innovation and Skills","Department of Business, Innovation and Skills",14/01/2011,Others UK T&S (Programme),Business & Skills Group - Information Economy,CATHY CURLING T/A CURLING CONSULTING,1016171,43.7
"Department of Business, Innovation and Skills","Department of Business, Innovation and Skills",18/01/2011,Mileage Allowances,Business & Skills Group - Life Sciences,CDB (MEADOWSIDE) LTD,1016547,152
"Department of Business, Innovation and Skills","Department of Business, Innovation and Skills",18/01/2011,Other UK Travel & Subsistence,Business & Skills Group - Life Sciences,CDB (MEADOWSIDE) LTD,1016547,18
"Department of Business, Innovation and Skills","Department of Business, Innovation and Skills",14/01/2011,Project Management Costs (Programme),Market and Frameworks Group - Europe and World Trade Directorates,CEDR SERVICES LTD,1016331,5287.5
"Department of Business, Innovation and Skills","Department of Business, Innovation and Skills",07/01/2011,Grants - Statutory - Current - Other,Business & Skills Group - Advanced Manufacturing Industries,CENEX,1015576,13545.86
"Department of Business, Innovation and Skills","Department of Business, Innovation and Skills",04/01/2011,Hire of Conference Facilities,Market and Frameworks Group - Business Environment and Growth Directorate,CENTRAL HALL WESTMINSTER LTD,1014880,201.9
"Department of Business, Innovation and Skills","Department of Business, Innovation and Skills",07/01/2011,Cash Expenditure during the Year - Other Programme Provisions,Finance & Commercial Group - Finance Group,CHARLES BARRINGTON,1015685,522
"Department of Business, Innovation and Skills","Department of Business, Innovation and Skills",12/01/2011,Secondees (not paid directly),Business & Skills Group - Advanced Manufacturing Industries,CHEMICAL INDUSTRIES ASSOCIATION LTD,1016126,16062.93
"Department of Business, Innovation and Skills","Department of Business, Innovation and Skills",11/01/2011,Criminal Law and Prosecution Work,"Legal, People & Communications Group - Legal",CHLOE HUDSON,1015764,229.13
"Department of Business, Innovation and Skills","Department of Business, Innovation and Skills",17/01/2011,Other Training Costs (Programme),"Legal, People & Communications Group - Priority Projects Drectorate",CHRIS STEBBING CONSULTING LTD,1016408,3629.33
"Department of Business, Innovation and Skills","Department of Business, Innovation and Skills",27/01/2011,Research & Development Expenditure (Programme),Knowledge and Innovation Group - GOVERNMENT OFFICE FOR SCIENCE,CHURCH HOUSE CONFERENCE CENTRE LTD,1017585,2466.66
"Department of Business, Innovation and Skills","Department of Business, Innovation and Skills",27/01/2011,Research & Development Expenditure (Programme),Knowledge and Innovation Group - GOVERNMENT OFFICE FOR SCIENCE,CHURCH HOUSE CONFERENCE CENTRE LTD,1017585,0.12
"Department of Business, Innovation and Skills","Department of Business, Innovation and Skills",07/01/2011,Publications,Office of Manpower Economics - Office of Manpower Economics,CIPFA BUSINESS LTD,1015169,141
"Department of Business, Innovation and Skills","Department of Business, Innovation and Skills",11/01/2011,Leased Buildings - Clearing,Finance & Commercial Group - Information and Workplace Strategies,CITA SERVICES LTD,1015409,10340
"Department of Business, Innovation and Skills","Department of Business, Innovation and Skills",07/01/2011,Grant in Aid - Current -Other,Market and Frameworks Group - Consumer and Competition Policy,CITIZENS ADVICE BUREAU,1015557,3091761
"Department of Business, Innovation and Skills","Department of Business, Innovation and Skills",06/01/2011,Conference and Exhibition Services,Shareholder Executive - Shareholder Executive,CITY FURNITURE HIRE LTD,1015499,313.02
"Department of Business, Innovation and Skills","Department of Business, Innovation and Skills",19/01/2011,Grants - Non Statutory - Current - Other,Market and Frameworks Group - Consumer and Competition Policy,CITY OF YORK COUNCIL,1016667,14136.66
"Department of Business, Innovation and Skills","Department of Business, Innovation and Skills",19/01/2011,Grants - Non Statutory - Current - Other,Market and Frameworks Group - Consumer and Competition Policy,CITY OF YORK COUNCIL,1016667,20823
"Department of Business, Innovation and Skills","Department of Business, Innovation and Skills",19/01/2011,Grants - Non Statutory - Current - Other,Market and Frameworks Group - Consumer and Competition Policy,CITY OF YORK COUNCIL,1016667,20823
"Department of Business, Innovation and Skills","Department of Business, Innovation and Skills",19/01/2011,Grants - Non Statutory - Current - Other,Market and Frameworks Group - Consumer and Competition Policy,CITY OF YORK COUNCIL,1016667,4235.5
"Department of Business, Innovation and Skills","Department of Business, Innovation and Skills",19/01/2011,Grants - Non Statutory - Current - Other,Market and Frameworks Group - Consumer and Competition Policy,CITY OF YORK COUNCIL,1016667,11778.75
"Department of Business, Innovation and Skills","Department of Business, Innovation and Skills",13/01/2011,Outsourced Technical Support (Programme),Knowledge and Innovation Group - UK Space Agency,CLAIR PASSELLE,1016224,1500
"Department of Business, Innovation and Skills","Department of Business, Innovation and Skills",13/01/2011,Outsourced Technical Support (Programme),Knowledge and Innovation Group - UK Space Agency,CLAIR PASSELLE,1016225,1500
"Department of Business, Innovation and Skills","Department of Business, Innovation and Skills",13/01/2011,Outsourced Technical Support (Programme),Knowledge and Innovation Group - UK Space Agency,CLAIR PASSELLE,1016226,1500
"Department of Business, Innovation and Skills","Department of Business, Innovation and Skills",17/01/2011,Outsourced Technical Support (Programme),Knowledge and Innovation Group - UK Space Agency,CLAIR PASSELLE,1016457,2000
"Department of Business, Innovation and Skills","Department of Business, Innovation and Skills",28/01/2011,Outsourced Technical Support (Programme),Knowledge and Innovation Group - UK Space Agency,CLAIR PASSELLE,1017752,2000
"Department of Business, Innovation and Skills","Department of Business, Innovation and Skills",07/01/2011,Taxis,Shareholder Executive - Shareholder Executive,CLIMATE CARS LTD,1015560,104.76
"Department of Business, Innovation and Skills","Department of Business, Innovation and Skills",06/01/2011,SL DS Utilisation,Knowledge and Innovation Group - Learners,CLUB 24 LTD t/a VENTURA,1015551,10004.95
"Department of Business, Innovation and Skills","Department of Business, Innovation and Skills",11/01/2011,Maintenance,Finance & Commercial Group - Information and Workplace Strategies,COFELY LTD,1015807,2195.69
"Department of Business, Innovation and Skills","Department of Business, Innovation and Skills",11/01/2011,Maintenance,Finance & Commercial Group - Information and Workplace Strategies,COFELY LTD,1015834,73111.51
"Department of Business, Innovation and Skills","Department of Business, Innovation and Skills",11/01/2011,Maintenance,Finance & Commercial Group - Information and Workplace Strategies,COFELY LTD,1015834,8846.31
"Department of Business, Innovation and Skills","Department of Business, Innovation and Skills",11/01/2011,Maintenance,Finance & Commercial Group - Information and Workplace Strategies,COFELY LTD,1015834,6978.61
"Department of Business, Innovation and Skills","Department of Business, Innovation and Skills",11/01/2011,Maintenance,Finance & Commercial Group - Information and Workplace Strategies,COFELY LTD,1015834,7661.04
"Department of Business, Innovation and Skills","Department of Business, Innovation and Skills",11/01/2011,Maintenance,Finance & Commercial Group - Information and Workplace Strategies,COFELY LTD,1015834,18179.93
"Department of Business, Innovation and Skills","Department of Business, Innovation and Skills",11/01/2011,Maintenance,Finance & Commercial Group - Information and Workplace Strategies,COFELY LTD,1015834,1008.03
"Department of Business, Innovation and Skills","Department of Business, Innovation and Skills",11/01/2011,Maintenance,Finance & Commercial Group - Information and Workplace Strategies,COFELY LTD,1015834,1651.65
"Department of Business, Innovation and Skills","Department of Business, Innovation and Skills",11/01/2011,Maintenance,Finance & Commercial Group - Information and Workplace Strategies,COFELY LTD,1015834,3241.73
"Department of Business, Innovation and Skills","Department of Business, Innovation and Skills",11/01/2011,Maintenance,Finance & Commercial Group - Information and Workplace Strategies,COFELY LTD,1015834,4519.79
"Department of Business, Innovation and Skills","Department of Business, Innovation and Skills",11/01/2011,Maintenance,Finance & Commercial Group - Information and Workplace Strategies,COFELY LTD,1015840,394.35
"Department of Business, Innovation and Skills","Department of Business, Innovation and Skills",11/01/2011,Maintenance,Finance & Commercial Group - Information and Workplace Strategies,COFELY LTD,1015853,711.65
"Department of Business, Innovation and Skills","Department of Business, Innovation and Skills",11/01/2011,Maintenance,Finance & Commercial Group - Information and Workplace Strategies,COFELY LTD,1015854,1106.88
"Department of Business, Innovation and Skills","Department of Business, Innovation and Skills",11/01/2011,Maintenance,Finance & Commercial Group - Information and Workplace Strategies,COFELY LTD,1015857,483.75
"Department of Business, Innovation and Skills","Department of Business, Innovation and Skills",11/01/2011,Maintenance,Finance & Commercial Group - Information and Workplace Strategies,COFELY LTD,1015862,3491.51
"Department of Business, Innovation and Skills","Department of Business, Innovation and Skills",11/01/2011,Maintenance,Finance & Commercial Group - Information and Workplace Strategies,COFELY LTD,1015863,720.18
"Department of Business, Innovation and Skills","Department of Business, Innovation and Skills",11/01/2011,Maintenance,Finance & Commercial Group - Information and Workplace Strategies,COFELY LTD,1015864,195.28
"Department of Business, Innovation and Skills","Department of Business, Innovation and Skills",11/01/2011,Maintenance,Finance & Commercial Group - Information and Workplace Strategies,COFELY LTD,1015866,616
"Department of Business, Innovation and Skills","Department of Business, Innovation and Skills",11/01/2011,Maintenance,Finance & Commercial Group - Information and Workplace Strategies,COFELY LTD,1015867,568.56
"Department of Business, Innovation and Skills","Department of Business, Innovation and Skills",06/01/2011,Media and Design Services,Business & Skills Group - Enterprise Directorate,COI COMMUNICATIONS,1015426,23824.5
"Department of Business, Innovation and Skills","Department of Business, Innovation and Skills",31/01/2011,Media and Design Services,Business & Skills Group - Enterprise Directorate,COI COMMUNICATIONS,1017396,532.3
"Department of Business, Innovation and Skills","Department of Business, Innovation and Skills",31/01/2011,Media and Design Services,Business & Skills Group - Enterprise Directorate,COI COMMUNICATIONS,1017396,2805
"Department of Business, Innovation and Skills","Department of Business, Innovation and Skills",31/01/2011,Media and Design Services,Business & Skills Group - Enterprise Directorate,COI COMMUNICATIONS,1017396,7087.7
"Department of Business, Innovation and Skills","Department of Business, Innovation and Skills",31/01/2011,Grants - Non Statutory - Current - Other,Business & Skills Group - Information Economy,COI COMMUNICATIONS,1017764,881816
"Department of Business, Innovation and Skills","Department of Business, Innovation and Skills",12/01/2011,Economic Consultancy & Research,Knowledge and Innovation Group - GOVERNMENT OFFICE FOR SCIENCE,COI COMMUNICATIONS,1016046,6408.45
"Department of Business, Innovation and Skills","Department of Business, Innovation and Skills",12/01/2011,Local IT Consultancy,Knowledge and Innovation Group - GOVERNMENT OFFICE FOR SCIENCE,COI COMMUNICATIONS,1016049,4329
"Department of Business, Innovation and Skills","Department of Business, Innovation and Skills",06/01/2011,IT Maintenance and Management Services,"Legal, People & Communications Group - Communications Directorate",COI COMMUNICATIONS,1014820,7507.5
"Department of Business, Innovation and Skills","Department of Business, Innovation and Skills",06/01/2011,Other Staff Costs (Programme),"Legal, People & Communications Group - Communications Directorate",COI COMMUNICATIONS,1015201,4331.25
"Department of Business, Innovation and Skills","Department of Business, Innovation and Skills",10/01/2011,Other Staff Costs (Programme),"Legal, People & Communications Group - Communications Directorate",COI COMMUNICATIONS,1015823,2467.5
"Department of Business, Innovation and Skills","Department of Business, Innovation and Skills",10/01/2011,Other Staff Costs (Programme),"Legal, People & Communications Group - Communications Directorate",COI COMMUNICATIONS,1015825,5292
"Department of Business, Innovation and Skills","Department of Business, Innovation and Skills",18/01/2011,IT Maintenance and Management Services,"Legal, People & Communications Group - Communications Directorate",COI COMMUNICATIONS,1016532,6825
"Department of Business, Innovation and Skills","Department of Business, Innovation and Skills",31/01/2011,Other Staff Costs (Programme),"Legal, People & Communications Group - Communications Directorate",COI COMMUNICATIONS,1017765,2625
"Department of Business, Innovation and Skills","Department of Business, Innovation and Skills",28/01/2011,Other Staff Costs (Programme),"Legal, People & Communications Group - Communications Directorate",COI COMMUNICATIONS,1017784,3454.5
"Department of Business, Innovation and Skills","Department of Business, Innovation and Skills",11/01/2011,Hire of Agency Staff (Professional/Management),"Legal, People & Communications Group - Communications Directorate",COI COMMUNICATIONS,1015124,21210
"Department of Business, Innovation and Skills","Department of Business, Innovation and Skills",04/01/2011,External Training,"Legal, People & Communications Group - Communications Directorate",COI COMMUNICATIONS,1015212,130
"Department of Business, Innovation and Skills","Department of Business, Innovation and Skills",28/01/2011,Hire of Agency Staff (Professional/Management),"Legal, People & Communications Group - Communications Directorate",COI COMMUNICATIONS,1017766,5979.75
"Department of Business, Innovation and Skills","Department of Business, Innovation and Skills",31/01/2011,Hire of Agency Staff (Professional/Management),"Legal, People & Communications Group - Communications Directorate",COI COMMUNICATIONS,1017893,446.25
"Department of Business, Innovation and Skills","Department of Business, Innovation and Skills",10/01/2011,Telephone Helpline Services,Market and Frameworks Group - Employment Relations,COI COMMUNICATIONS,1015668,1933.91
"Department of Business, Innovation and Skills","Department of Business, Innovation and Skills",10/01/2011,Telephone Helpline Services,Market and Frameworks Group - Employment Relations,COI COMMUNICATIONS,1015668,2146.58
"Department of Business, Innovation and Skills","Department of Business, Innovation and Skills",10/01/2011,Telephone Helpline Services,Market and Frameworks Group - Employment Relations,COI COMMUNICATIONS,1015668,6076.4
"Department of Business, Innovation and Skills","Department of Business, Innovation and Skills",10/01/2011,Telephone Helpline Services,Market and Frameworks Group - Employment Relations,COI COMMUNICATIONS,1015668,2658.57
"Department of Business, Innovation and Skills","Department of Business, Innovation and Skills",10/01/2011,Telephone Helpline Services,Market and Frameworks Group - Employment Relations,COI COMMUNICATIONS,1015668,11204.49
"Department of Business, Innovation and Skills","Department of Business, Innovation and Skills",10/01/2011,Telephone Helpline Services,Market and Frameworks Group - Employment Relations,COI COMMUNICATIONS,1015668,41979.78
"Department of Business, Innovation and Skills","Department of Business, Innovation and Skills",20/01/2011,Telephone Helpline Services,Market and Frameworks Group - Employment Relations,COI COMMUNICATIONS,1016535,33020.23
"Department of Business, Innovation and Skills","Department of Business, Innovation and Skills",20/01/2011,Telephone Helpline Services,Market and Frameworks Group - Employment Relations,COI COMMUNICATIONS,1016535,31992.9
"Department of Business, Innovation and Skills","Department of Business, Innovation and Skills",11/01/2011,Printing,Market and Frameworks Group - Europe and World Trade Directorates,COI COMMUNICATIONS,1015890,2889
"Department of Business, Innovation and Skills","Department of Business, Innovation and Skills",05/01/2011,Grants - Statutory - Current - Abroad,Knowledge and Innovation Group - Learners,COLLEGE OF EUROPE,1014638,8933.06
"Department of Business, Innovation and Skills","Department of Business, Innovation and Skills",07/01/2011,Grants - Statutory - Current - Abroad,Knowledge and Innovation Group - Learners,COLLEGE OF EUROPE,1014790,44306.03
"Department of Business, Innovation and Skills","Department of Business, Innovation and Skills",07/01/2011,Grants - Non Statutory - Current - Other,Market and Frameworks Group - Employment Relations,COMMUNICATIONS WORKERS UNION,1015602,5680.95
"Department of Business, Innovation and Skills","Department of Business, Innovation and Skills",21/01/2011,Grants - Non Statutory - Current - Other,Market and Frameworks Group - Employment Relations,COMMUNICATIONS WORKERS UNION,1016815,5680.95
"Department of Business, Innovation and Skills","Department of Business, Innovation and Skills",04/01/2011,Publications,Business & Skills Group - Economic Development Directorate,COMPANIES HOUSE,1014875,5
"Department of Business, Innovation and Skills","Department of Business, Innovation and Skills",17/01/2011,Publications,Business & Skills Group - Economic Development Directorate,COMPANIES HOUSE,1016549,5
"Department of Business, Innovation and Skills","Department of Business, Innovation and Skills",06/01/2011,Telecommunications,Finance & Commercial Group - Information and Workplace Strategies,COMPANIES HOUSE,1015592,1221.58
"Department of Business, Innovation and Skills","Department of Business, Innovation and Skills",11/01/2011,Telecommunications,Finance & Commercial Group - Information and Workplace Strategies,COMPANIES HOUSE,1015593,1496.47
"Department of Business, Innovation and Skills","Department of Business, Innovation and Skills",12/01/2011,InfoSource Desktop Information and Research Services,Finance & Commercial Group - Information and Workplace Strategies,COMPANIES HOUSE,1015957,969.5
"Department of Business, Innovation and Skills","Department of Business, Innovation and Skills",27/01/2011,Stationery,"Legal, People & Communications Group - HRCM - Human Resources and Change Management Directorate",COMPANIES HOUSE,1017646,1241.98
"Department of Business, Innovation and Skills","Department of Business, Innovation and Skills",11/01/2011,Criminal Law and Prosecution Work,"Legal, People & Communications Group - Legal",COMPANIES HOUSE,1015829,112
"Department of Business, Innovation and Skills","Department of Business, Innovation and Skills",20/01/2011,Criminal Law and Prosecution Work,"Legal, People & Communications Group - Legal",COMPANIES HOUSE,1016779,111
"Department of Business, Innovation and Skills","Department of Business, Innovation and Skills",17/01/2011,Other Office Service Costs,Market and Frameworks Group - Employment Relations,COMPANIES HOUSE,1016500,36
"Department of Business, Innovation and Skills","Department of Business, Innovation and Skills",14/01/2011,On-Line Databases,Shareholder Executive - Shareholder Executive,COMPANIES HOUSE,1016429,4
"Department of Business, Innovation and Skills","Department of Business, Innovation and Skills",14/01/2011,On-Line Databases,Shareholder Executive - Shareholder Executive,COMPANIES HOUSE,1016429,1
"Department of Business, Innovation and Skills","Department of Business, Innovation and Skills",20/01/2011,Outsourced Programme Management Services,Business & Skills Group - Further Education & Skills Investment,COMPANIES HOUSE DIRECT,1015973,5
"Department of Business, Innovation and Skills","Department of Business, Innovation and Skills",17/01/2011,Corporate Management Consultancy,Chief Economic Advisor &BRE Group - Better Regulation Executive (BRE),COMPASS ROSE & CO,1016498,3400
"Department of Business, Innovation and Skills","Department of Business, Innovation and Skills",17/01/2011,Corporate Management Consultancy,Chief Economic Advisor &BRE Group - Better Regulation Executive (BRE),COMPASS ROSE & CO,1016499,3400
"Department of Business, Innovation and Skills","Department of Business, Innovation and Skills",11/01/2011,Other Accommodation Charges,Chief Economic Advisor &BRE Group - IEBRE Central Support,COMPETITION COMMISSION,1014379,-80.97
"Department of Business, Innovation and Skills","Department of Business, Innovation and Skills",12/01/2011,Other Accommodation Charges,Chief Economic Advisor &BRE Group - IEBRE Central Support,COMPETITION COMMISSION,1015673,5515.44
"Department of Business, Innovation and Skills","Department of Business, Innovation and Skills",11/01/2011,Service Charges,Finance & Commercial Group - Information and Workplace Strategies,COMPETITION COMMISSION,1015893,7023.94
"Department of Business, Innovation and Skills","Department of Business, Innovation and Skills",11/01/2011,Accommodation Rentals,Finance & Commercial Group - Information and Workplace Strategies,COMPETITION COMMISSION,1015897,107047.2
"Department of Business, Innovation and Skills","Department of Business, Innovation and Skills",11/01/2011,Service Charges,Finance & Commercial Group - Information and Workplace Strategies,COMPETITION COMMISSION,1015900,28103.71
"Department of Business, Innovation and Skills","Department of Business, Innovation and Skills",11/01/2011,Rates,Finance & Commercial Group - Information and Workplace Strategies,COMPETITION COMMISSION,1015906,40070.56
"Department of Business, Innovation and Skills","Department of Business, Innovation and Skills",07/01/2011,Grant in Aid - Current -Other,Market and Frameworks Group - Consumer and Competition Policy,COMPETITION SERVICE,1015613,689000
"Department of Business, Innovation and Skills","Department of Business, Innovation and Skills",18/01/2011,Research & Development Expenditure (Programme),Knowledge and Innovation Group - GOVERNMENT OFFICE FOR SCIENCE,COMPLETE TRANSPORT SOLUTIONS LTD,1016589,56.4
"Department of Business, Innovation and Skills","Department of Business, Innovation and Skills",31/01/2011,IT Services (Programme),Shareholder Executive - Shareholder Executive,COMPUTACENTER plc,1017344,3817.73
"Department of Business, Innovation and Skills","Department of Business, Innovation and Skills",31/01/2011,IT Services (Programme),Shareholder Executive - Shareholder Executive,COMPUTACENTER plc,1017345,1623.6
"Department of Business, Innovation and Skills","Department of Business, Innovation and Skills",12/01/2011,Other UK Travel & Subsistence,"Legal, People & Communications Group - Legal",COMPUTER CAB plc,1016135,28.71
"Department of Business, Innovation and Skills","Department of Business, Innovation and Skills",12/01/2011,Other UK Travel & Subsistence,"Legal, People & Communications Group - Legal",COMPUTER CAB plc,1016135,31
"Department of Business, Innovation and Skills","Department of Business, Innovation and Skills",31/01/2011,Cash Consolidated Fund Extra Receipts Paid Over to HM Treasury,Corporate Payments - ,CONSOLIDATED FUND ACCOUNT 6622,1017941,2000000
"Department of Business, Innovation and Skills","Department of Business, Innovation and Skills",17/01/2011,Sponsorship Support,Chief Economic Advisor &BRE Group - Strategic Policy Analysis,CONSTRUCTING EXCELLENCE LTD,1016425,18000
"Department of Business, Innovation and Skills","Department of Business, Innovation and Skills",12/01/2011,Hire of Agency Staff (Professional/Management),Business & Skills Group - Advanced Manufacturing Industries,CONSTRUCTION INDUSTRY COUNCIL,1016113,11759.16
"Department of Business, Innovation and Skills","Department of Business, Innovation and Skills",17/01/2011,Grant in Aid - Current -Other,Market and Frameworks Group - Consumer and Competition Policy,CONSUMER FOCUS,1016437,3476000
"Department of Business, Innovation and Skills","Department of Business, Innovation and Skills",07/01/2011,Finance & Accounting Advice,Shareholder Executive - Shareholder Executive,CO-OPERATIVES UK LTD,1015670,33000
"Department of Business, Innovation and Skills","Department of Business, Innovation and Skills",24/01/2011,Finance & Accounting Advice,Shareholder Executive - Shareholder Executive,CO-OPERATIVES UK LTD,1017053,9000
"Department of Business, Innovation and Skills","Department of Business, Innovation and Skills",04/01/2011,Security Policy Service,Finance & Commercial Group - Information and Workplace Strategies,COPIERTEC LTD,1015160,36.3
"Department of Business, Innovation and Skills","Department of Business, Innovation and Skills",27/01/2011,Outsourced Programme Management Services,Business & Skills Group - Further Education,CORE ACHIEVEMENT LTD,1017477,2100
"Department of Business, Innovation and Skills","Department of Business, Innovation and Skills",24/01/2011,Gas (Programme),Finance & Commercial Group - Information and Workplace Strategies,CORONA ENERGY,1017001,362.91
"Department of Business, Innovation and Skills","Department of Business, Innovation and Skills",25/01/2011,Gas (Programme),Finance & Commercial Group - Information and Workplace Strategies,CORONA ENERGY,1017160,732.54
"Department of Business, Innovation and Skills","Department of Business, Innovation and Skills",25/01/2011,Gas (Programme),Finance & Commercial Group - Information and Workplace Strategies,CORONA ENERGY,1017161,0.98
"Department of Business, Innovation and Skills","Department of Business, Innovation and Skills",25/01/2011,Gas (Programme),Finance & Commercial Group - Information and Workplace Strategies,CORONA ENERGY,1017162,401.9
"Department of Business, Innovation and Skills","Department of Business, Innovation and Skills",11/01/2011,Gas,Finance & Commercial Group - Information and Workplace Strategies,CORONA ENERGY,1015789,8611.81
"Department of Business, Innovation and Skills","Department of Business, Innovation and Skills",11/01/2011,Gas,Finance & Commercial Group - Information and Workplace Strategies,CORONA ENERGY,1015790,249.5
"Department of Business, Innovation and Skills","Department of Business, Innovation and Skills",11/01/2011,Gas,Finance & Commercial Group - Information and Workplace Strategies,CORONA ENERGY,1015796,96.71
"Department of Business, Innovation and Skills","Department of Business, Innovation and Skills",11/01/2011,Gas,Finance & Commercial Group - Information and Workplace Strategies,CORONA ENERGY,1015798,2778.36
"Department of Business, Innovation and Skills","Department of Business, Innovation and Skills",11/01/2011,Gas,Finance & Commercial Group - Information and Workplace Strategies,CORONA ENERGY,1015801,3478.27
"Department of Business, Innovation and Skills","Department of Business, Innovation and Skills",11/01/2011,Gas,Finance & Commercial Group - Information and Workplace Strategies,CORONA ENERGY,1015803,5379.21
"Department of Business, Innovation and Skills","Department of Business, Innovation and Skills",11/01/2011,Gas,Finance & Commercial Group - Information and Workplace Strategies,CORONA ENERGY,1015804,1409.14
"Department of Business, Innovation and Skills","Department of Business, Innovation and Skills",19/01/2011,Entertaining UK,Business & Skills Group - Economic Development Directorate,CREATIVE SPACE MANAGEMENT LTD (AMP TECHNOLOGY CENTRE),1016662,102
"Department of Business, Innovation and Skills","Department of Business, Innovation and Skills",28/01/2011,Secondees (not paid directly),Shareholder Executive - Shareholder Executive,CREDIT SUISSE SECURITIES (EUROPE) LTD,1017611,2463.27
"Department of Business, Innovation and Skills","Department of Business, Innovation and Skills",28/01/2011,Secondees (not paid directly),Shareholder Executive - Shareholder Executive,CREDIT SUISSE SECURITIES (EUROPE) LTD,1017611,6289.26
"Department of Business, Innovation and Skills","Department of Business, Innovation and Skills",28/01/2011,Secondees (not paid directly),Shareholder Executive - Shareholder Executive,CREDIT SUISSE SECURITIES (EUROPE) LTD,1017611,0.02
"Department of Business, Innovation and Skills","Department of Business, Innovation and Skills",06/01/2011,Other Accommodation Charges (Programme),Finance & Commercial Group - Information and Workplace Strategies,CRYSTAL SERVICES PLC,1015454,5973.15
"Department of Business, Innovation and Skills","Department of Business, Innovation and Skills",07/01/2011,IT Maintenance and Management Services,Knowledge and Innovation Group - Innovation,CTN,1015638,9500
"Department of Business, Innovation and Skills","Department of Business, Innovation and Skills",12/01/2011,Professional Training,"Legal, People & Communications Group - HRCM - Human Resources and Change Management Directorate",CULLEN SCHOLEFIELD LIMITED,1016130,5500
"Department of Business, Innovation and Skills","Department of Business, Innovation and Skills",31/01/2011,Service Charges,Finance & Commercial Group - Information and Workplace Strategies,CUSHMAN & WAKEFIELD LLP,1017856,10000
"Department of Business, Innovation and Skills","Department of Business, Innovation and Skills",05/01/2011,Telecommunications,Business & Skills Group - Information Economy,DAISY COMMUNICATIONS LTD,1014439,53.72
"Department of Business, Innovation and Skills","Department of Business, Innovation and Skills",13/01/2011,Other IT Costs,Business & Skills Group - Information Economy,DAISY COMMUNICATIONS LTD,1014563,35.24
"Department of Business, Innovation and Skills","Department of Business, Innovation and Skills",13/01/2011,Other IT Costs,Business & Skills Group - Information Economy,DAISY COMMUNICATIONS LTD,1014564,35.24
"Department of Business, Innovation and Skills","Department of Business, Innovation and Skills",05/01/2011,Telecommunications,Business & Skills Group - Information Economy,DAISY COMMUNICATIONS LTD,1015387,47.41
"Department of Business, Innovation and Skills","Department of Business, Innovation and Skills",17/01/2011,Telecommunications,Business & Skills Group - Information Economy,DAISY COMMUNICATIONS LTD,1015782,9.22
"Department of Business, Innovation and Skills","Department of Business, Innovation and Skills",25/01/2011,Other IT Costs,Business & Skills Group - Information Economy,DAISY COMMUNICATIONS LTD,1016835,35.99
"Department of Business, Innovation and Skills","Department of Business, Innovation and Skills",24/01/2011,Maintenance (Programme),Finance & Commercial Group - Information and Workplace Strategies,DAISY COMMUNICATIONS LTD,1017027,450.08
"Department of Business, Innovation and Skills","Department of Business, Innovation and Skills",06/01/2011,Telecommunications,Finance & Commercial Group - Information and Workplace Strategies,DAISY COMMUNICATIONS LTD,1015456,13.69
"Department of Business, Innovation and Skills","Department of Business, Innovation and Skills",12/01/2011,Telecommunications,Finance & Commercial Group - Information and Workplace Strategies,DAISY COMMUNICATIONS LTD,1016166,30.54
"Department of Business, Innovation and Skills","Department of Business, Innovation and Skills",21/01/2011,Flexible Computing Service,Finance & Commercial Group - Information and Workplace Strategies,DAISY COMMUNICATIONS LTD,1016833,35.99
"Department of Business, Innovation and Skills","Department of Business, Innovation and Skills",27/01/2011,Telecommunications,Finance & Commercial Group - Information and Workplace Strategies,DAISY COMMUNICATIONS LTD,1017608,149.13
"Department of Business, Innovation and Skills","Department of Business, Innovation and Skills",27/01/2011,Telecommunications,Finance & Commercial Group - Information and Workplace Strategies,DAISY COMMUNICATIONS LTD,1017609,149.13
"Department of Business, Innovation and Skills","Department of Business, Innovation and Skills",27/01/2011,Telecommunications,Finance & Commercial Group - Information and Workplace Strategies,DAISY COMMUNICATIONS LTD,1017610,149.13
"Department of Business, Innovation and Skills","Department of Business, Innovation and Skills",27/01/2011,Telecommunications,Finance & Commercial Group - Information and Workplace Strategies,DAISY COMMUNICATIONS LTD,1017614,149.13
"Department of Business, Innovation and Skills","Department of Business, Innovation and Skills",27/01/2011,Telecommunications,Finance & Commercial Group - Information and Workplace Strategies,DAISY COMMUNICATIONS LTD,1017615,149.13
"Department of Business, Innovation and Skills","Department of Business, Innovation and Skills",27/01/2011,Telecommunications,Finance & Commercial Group - Information and Workplace Strategies,DAISY COMMUNICATIONS LTD,1017616,47.68
"Department of Business, Innovation and Skills","Department of Business, Innovation and Skills",27/01/2011,Telecommunications,Finance & Commercial Group - Information and Workplace Strategies,DAISY COMMUNICATIONS LTD,1017617,44.23
"Department of Business, Innovation and Skills","Department of Business, Innovation and Skills",27/01/2011,Telecommunications,Finance & Commercial Group - Information and Workplace Strategies,DAISY COMMUNICATIONS LTD,1017677,1060.32
"Department of Business, Innovation and Skills","Department of Business, Innovation and Skills",27/01/2011,Telecommunications,Finance & Commercial Group - Information and Workplace Strategies,DAISY COMMUNICATIONS LTD,1017678,31.19
"Department of Business, Innovation and Skills","Department of Business, Innovation and Skills",27/01/2011,Telecommunications,Finance & Commercial Group - Information and Workplace Strategies,DAISY COMMUNICATIONS LTD,1017679,105.58
"Department of Business, Innovation and Skills","Department of Business, Innovation and Skills",27/01/2011,Telecommunications,Finance & Commercial Group - Information and Workplace Strategies,DAISY COMMUNICATIONS LTD,1017680,13.98
"Department of Business, Innovation and Skills","Department of Business, Innovation and Skills",27/01/2011,Telecommunications,Finance & Commercial Group - Information and Workplace Strategies,DAISY COMMUNICATIONS LTD,1017687,17.23
"Department of Business, Innovation and Skills","Department of Business, Innovation and Skills",28/01/2011,Telecommunications,Finance & Commercial Group - Information and Workplace Strategies,DAISY COMMUNICATIONS LTD,1017798,1046.03
"Department of Business, Innovation and Skills","Department of Business, Innovation and Skills",12/01/2011,Other IT Costs,Knowledge and Innovation Group - Innovation,DAISY COMMUNICATIONS LTD,1016150,105.41
"Department of Business, Innovation and Skills","Department of Business, Innovation and Skills",26/01/2011,Other IT Costs,Knowledge and Innovation Group - Innovation,DAISY COMMUNICATIONS LTD,1017523,52.79
"Department of Business, Innovation and Skills","Department of Business, Innovation and Skills",12/01/2011,Static Line Rental,"Legal, People & Communications Group - Communications Directorate",DAISY COMMUNICATIONS LTD,1016147,24.58
"Department of Business, Innovation and Skills","Department of Business, Innovation and Skills",19/01/2011,Other Telephone Costs,Market and Frameworks Group - Employment Relations,DAISY COMMUNICATIONS LTD,1016665,17.23
"Department of Business, Innovation and Skills","Department of Business, Innovation and Skills",07/01/2011,Hire of Reprographic Equipment,Finance & Commercial Group - Information and Workplace Strategies,DANWOOD GROUP,1015564,31.73
"Department of Business, Innovation and Skills","Department of Business, Innovation and Skills",12/01/2011,Criminal Law and Prosecution Work,"Legal, People & Communications Group - Legal",DARBYS,1015817,3797.82
"Department of Business, Innovation and Skills","Department of Business, Innovation and Skills",12/01/2011,Criminal Law and Prosecution Work,"Legal, People & Communications Group - Legal",DARBYS,1015817,156
"Department of Business, Innovation and Skills","Department of Business, Innovation and Skills",21/01/2011,Criminal Law and Prosecution Work,"Legal, People & Communications Group - Legal",DARBYS,1016920,694.67
"Department of Business, Innovation and Skills","Department of Business, Innovation and Skills",21/01/2011,Criminal Law and Prosecution Work,"Legal, People & Communications Group - Legal",DARBYS,1016922,196.42
"Department of Business, Innovation and Skills","Department of Business, Innovation and Skills",11/01/2011,Criminal Law and Prosecution Work,"Legal, People & Communications Group - Legal",DAVID HEWITT,1015774,669.75
"Department of Business, Innovation and Skills","Department of Business, Innovation and Skills",20/01/2011,Criminal Law and Prosecution Work,"Legal, People & Communications Group - Legal",DAVID ROTHBAND,1016699,90.91
"Department of Business, Innovation and Skills","Department of Business, Innovation and Skills",20/01/2011,Secondees (not paid directly),Knowledge and Innovation Group - GOVERNMENT OFFICE FOR SCIENCE,DEFRA,1016789,15594.06
"Department of Business, Innovation and Skills","Department of Business, Innovation and Skills",07/01/2011,Corporate Management Consultancy,Shareholder Executive - Shareholder Executive,DELOITTE LLP,1015666,23500
"Department of Business, Innovation and Skills","Department of Business, Innovation and Skills",17/01/2011,Finance & Accounting Advice,Shareholder Executive - Shareholder Executive,DELOITTE LLP,1016447,120459.43
"Department of Business, Innovation and Skills","Department of Business, Innovation and Skills",21/01/2011,Other IT Costs (Programme),Market and Frameworks Group - Europe Directorate,DEPARTMENT FOR COMMUNITIES AND LOCAL GOVERNMENT,1016472,14694
"Department of Business, Innovation and Skills","Department of Business, Innovation and Skills",12/01/2011,Grants - Non Statutory - Current - Other,Business & Skills Group - Further Education,DEPARTMENT FOR EDUCATION,1015791,29375
"Department of Business, Innovation and Skills","Department of Business, Innovation and Skills",12/01/2011,Media and Design Services,Knowledge and Innovation Group - Higher Education,DEPARTMENT FOR EDUCATION,1016039,843620
"Department of Business, Innovation and Skills","Department of Business, Innovation and Skills",10/01/2011,Sundry Debtors,Knowledge and Innovation Group - Learners,DEPARTMENT FOR EMPLOYMENT AND LEARNING,1015516,9554735.36
"Department of Business, Innovation and Skills","Department of Business, Innovation and Skills",17/01/2011,Sundry Debtors,Knowledge and Innovation Group - Learners,DEPARTMENT FOR EMPLOYMENT AND LEARNING,1016448,3984.01
"Department of Business, Innovation and Skills","Department of Business, Innovation and Skills",18/01/2011,Sundry Debtors,Knowledge and Innovation Group - Learners,DEPARTMENT FOR EMPLOYMENT AND LEARNING,1016620,26921.9
"Department of Business, Innovation and Skills","Department of Business, Innovation and Skills",31/01/2011,EU Division Payments,Business & Skills Group - Further Education & Skills Investment,DEPARTMENT FOR WORK AND PENSIONS (DWP),1017899,3041
"Department of Business, Innovation and Skills","Department of Business, Innovation and Skills",31/01/2011,EU Division Payments,Business & Skills Group - Further Education & Skills Investment,DEPARTMENT FOR WORK AND PENSIONS (DWP),1017899,3111738.49
"Department of Business, Innovation and Skills","Department of Business, Innovation and Skills",31/01/2011,EU Division Payments,Business & Skills Group - Further Education & Skills Investment,DEPARTMENT FOR WORK AND PENSIONS (DWP),1017900,10000
"Department of Business, Innovation and Skills","Department of Business, Innovation and Skills",24/01/2011,Capital Grants - Other,Business & Skills Group - Advanced Manufacturing Industries,Department of Energy & Climate Change,1017051,265586.07
"Department of Business, Innovation and Skills","Department of Business, Innovation and Skills",26/01/2011,Capital Grants - Other,Business & Skills Group - Advanced Manufacturing Industries,Department of Energy & Climate Change,1004418,25000000
"Department of Business, Innovation and Skills","Department of Business, Innovation and Skills",11/01/2011,Capital Grants - Other,Business & Skills Group - Advanced Manufacturing Industries,Department of Energy & Climate Change,1015914,2695731
"Department of Business, Innovation and Skills","Department of Business, Innovation and Skills",24/01/2011,Capital Grants - Other,Business & Skills Group - Advanced Manufacturing Industries,Department of Energy & Climate Change,1017052,3117381
"Department of Business, Innovation and Skills","Department of Business, Innovation and Skills",31/01/2011,Amount owing to BIS from DECC for recharged services,Corporate Payments - ,Department of Energy & Climate Change,1017928,45468.15
"Department of Business, Innovation and Skills","Department of Business, Innovation and Skills",12/01/2011,Outsourced Programme Management Services,Business & Skills Group - Further Education,DEPARTMENT OF HEALTH,1014279,60000
"Department of Business, Innovation and Skills","Department of Business, Innovation and Skills",12/01/2011,Other Office Service Costs,Knowledge and Innovation Group - RESEARCH BASE,DEPARTMENT OF HEALTH,1016076,24805.7
"Department of Business, Innovation and Skills","Department of Business, Innovation and Skills",27/01/2011,Grant in Aid - Current -Other,Knowledge and Innovation Group - Innovation,DESIGN COUNCIL,1017586,450000
"Department of Business, Innovation and Skills","Department of Business, Innovation and Skills",24/01/2011,Other Accommodation Charges (Programme),Finance & Commercial Group - Information and Workplace Strategies,DESIGNAPLANT LTD,1017103,47
"Department of Business, Innovation and Skills","Department of Business, Innovation and Skills",18/01/2011,Outsourced Programme Management Services,Market and Frameworks Group - Employment Relations,DISC FACTORY LTD,1016633,961.15
"Department of Business, Innovation and Skills","Department of Business, Innovation and Skills",17/01/2011,Security Policy Service,Finance & Commercial Group - Information and Workplace Strategies,DISCLOSURE SCOTLAND,1016517,46
"Department of Business, Innovation and Skills","Department of Business, Innovation and Skills",14/01/2011,Other Accommodation Charges (Programme),Finance & Commercial Group - Information and Workplace Strategies,DLA PIPER UK LLP,1016335,1250
"Department of Business, Innovation and Skills","Department of Business, Innovation and Skills",14/01/2011,Other Accommodation Charges (Programme),Finance & Commercial Group - Information and Workplace Strategies,DLA PIPER UK LLP,1016374,1226.8
"Department of Business, Innovation and Skills","Department of Business, Innovation and Skills",17/01/2011,Other Accommodation Charges (Programme),Finance & Commercial Group - Information and Workplace Strategies,DLA PIPER UK LLP,1016420,1661.6
"Department of Business, Innovation and Skills","Department of Business, Innovation and Skills",31/01/2011,Other Accommodation Charges (Programme),Finance & Commercial Group - Information and Workplace Strategies,DLA PIPER UK LLP,1017919,72000
"Department of Business, Innovation and Skills","Department of Business, Innovation and Skills",31/01/2011,Other Accommodation Charges (Programme),Finance & Commercial Group - Information and Workplace Strategies,DLA PIPER UK LLP,1017921,64200
"Department of Business, Innovation and Skills","Department of Business, Innovation and Skills",21/01/2011,Other Training Costs,Chief Economic Advisor &BRE Group - Better Regulation Executive (BRE),DOD'S PARLIAMENTARY COMMUNICATIONS LTD,1016790,282
"Department of Business, Innovation and Skills","Department of Business, Innovation and Skills",07/01/2011,Leadership & People Management Training,Knowledge and Innovation Group - Higher Education Admin,DOD'S PARLIAMENTARY COMMUNICATIONS LTD (WESTMINSTER EXPLAINED),1015569,295
"Department of Business, Innovation and Skills","Department of Business, Innovation and Skills",05/01/2011,Leadership & People Management Training,Knowledge and Innovation Group - RESEARCH BASE,DOD'S PARLIAMENTARY COMMUNICATIONS LTD (WESTMINSTER EXPLAINED),1015421,295
"Department of Business, Innovation and Skills","Department of Business, Innovation and Skills",13/01/2011,External Training,"Legal, People & Communications Group - Communications Directorate",DOD'S PARLIAMENTARY COMMUNICATIONS LTD (WESTMINSTER EXPLAINED),1016180,760
"Department of Business, Innovation and Skills","Department of Business, Innovation and Skills",13/01/2011,Criminal Law and Prosecution Work,"Legal, People & Communications Group - Legal",DONALD GILLANDERS,1016148,548.5
"Department of Business, Innovation and Skills","Department of Business, Innovation and Skills",10/01/2011,IT Services (Programme),"Legal, People & Communications Group - Communications Directorate",DOUGLAS LANG T/A NETDOTNET,1015345,135
"Department of Business, Innovation and Skills","Department of Business, Innovation and Skills",27/01/2011,Criminal Law and Prosecution Work,"Legal, People & Communications Group - Legal",DR DAVID MORGAN,1017606,50
"Department of Business, Innovation and Skills","Department of Business, Innovation and Skills",13/01/2011,Storage and Distribution,Finance & Commercial Group - Information and Workplace Strategies,DRAGON FIRE & SECURITY SYSTEMS LTD,1016265,77.6
"Department of Business, Innovation and Skills","Department of Business, Innovation and Skills",24/01/2011,Other Accommodation Charges,"Legal, People & Communications Group - HRCM - Human Resources and Change Management Directorate",DRAGON FIRE & SECURITY SYSTEMS LTD,1016964,257.6
"Department of Business, Innovation and Skills","Department of Business, Innovation and Skills",12/01/2011,Research & Development Expenditure (Programme),Knowledge and Innovation Group - GOVERNMENT OFFICE FOR SCIENCE,DSTL,1016162,18309
"Department of Business, Innovation and Skills","Department of Business, Innovation and Skills",13/01/2011,Accommodation Rentals,Finance & Commercial Group - Information and Workplace Strategies,DWP (DEPARTMENT FOR WORK AND PENSIONS),1016264,7790.66
"Department of Business, Innovation and Skills","Department of Business, Innovation and Skills",13/01/2011,Rates,Finance & Commercial Group - Information and Workplace Strategies,DWP (DEPARTMENT FOR WORK AND PENSIONS),1016264,3028.65
"Department of Business, Innovation and Skills","Department of Business, Innovation and Skills",13/01/2011,Service Charges,Finance & Commercial Group - Information and Workplace Strategies,DWP (DEPARTMENT FOR WORK AND PENSIONS),1016264,769.34
"Department of Business, Innovation and Skills","Department of Business, Innovation and Skills",18/01/2011,Research & Development Expenditure (Programme),Knowledge and Innovation Group - GOVERNMENT OFFICE FOR SCIENCE,E P EVANS,1016358,7055.19
"Department of Business, Innovation and Skills","Department of Business, Innovation and Skills",27/01/2011,Grants - Non Statutory - Current - Other,Business & Skills Group - Advanced Manufacturing Industries,EAST MIDLANDS DEVELOPMENT AGENCY,1017661,18800.9
"Department of Business, Innovation and Skills","Department of Business, Innovation and Skills",27/01/2011,Grants - Non Statutory - Current - Other,Business & Skills Group - Advanced Manufacturing Industries,EAST MIDLANDS DEVELOPMENT AGENCY,1017661,9583
"Department of Business, Innovation and Skills","Department of Business, Innovation and Skills",26/01/2011,Sponsorship Support,Business & Skills Group - Advanced Manufacturing Industries,EAST MIDLANDS DEVELOPMENT AGENCY,1016736,38834
"Department of Business, Innovation and Skills","Department of Business, Innovation and Skills",26/01/2011,Sponsorship Support,Business & Skills Group - Advanced Manufacturing Industries,EAST MIDLANDS DEVELOPMENT AGENCY,1016736,40322
"Department of Business, Innovation and Skills","Department of Business, Innovation and Skills",17/01/2011,Grant in Aid - Current -Other,Business & Skills Group - Economic Development Directorate,EAST MIDLANDS DEVELOPMENT AGENCY,1016029,8000000
"Department of Business, Innovation and Skills","Department of Business, Innovation and Skills",26/01/2011,Finance Training,Finance & Commercial Group - Finance Group,EAST OF ENGLAND AMBULANCE SERVICE NHS TRUST,1016650,569.88
"Department of Business, Innovation and Skills","Department of Business, Innovation and Skills",26/01/2011,Finance Training,Finance & Commercial Group - Finance Group,EAST OF ENGLAND AMBULANCE SERVICE NHS TRUST,1016652,-411.25
"Department of Business, Innovation and Skills","Department of Business, Innovation and Skills",17/01/2011,Grant in Aid - Current -Other,Business & Skills Group - Economic Development Directorate,EAST OF ENGLAND DEVELOPMENT AGENCY (EEDA),1015991,6000000
"Department of Business, Innovation and Skills","Department of Business, Innovation and Skills",24/01/2011,Leased Buildings - Clearing,Finance & Commercial Group - Information and Workplace Strategies,EC HARRIS LLP,1016470,22207.5
"Department of Business, Innovation and Skills","Department of Business, Innovation and Skills",26/01/2011,Leased Buildings - Clearing,Finance & Commercial Group - Information and Workplace Strategies,EC HARRIS LLP,1016663,7261.27
"Department of Business, Innovation and Skills","Department of Business, Innovation and Skills",26/01/2011,Leased Buildings - Clearing,Finance & Commercial Group - Information and Workplace Strategies,EC HARRIS LLP,1016664,7261.27
"Department of Business, Innovation and Skills","Department of Business, Innovation and Skills",27/01/2011,Leased Buildings - Clearing,Finance & Commercial Group - Information and Workplace Strategies,EC HARRIS LLP,1017505,28933.2
"Department of Business, Innovation and Skills","Department of Business, Innovation and Skills",17/01/2011,Other Accommodation Charges (Programme),Finance & Commercial Group - Information and Workplace Strategies,EC HARRIS LLP,1016469,4455
"Department of Business, Innovation and Skills","Department of Business, Innovation and Skills",24/01/2011,Other Accommodation Charges (Programme),Finance & Commercial Group - Information and Workplace Strategies,EC HARRIS LLP,1017037,1771.53
"Department of Business, Innovation and Skills","Department of Business, Innovation and Skills",10/01/2011,Facilities Management Contract Costs,Finance & Commercial Group - Information and Workplace Strategies,EC HARRIS LLP,1015740,28979.91
"Department of Business, Innovation and Skills","Department of Business, Innovation and Skills",10/01/2011,Facilities Management Contract Costs,Finance & Commercial Group - Information and Workplace Strategies,EC HARRIS LLP,1015740,7241.86
"Department of Business, Innovation and Skills","Department of Business, Innovation and Skills",10/01/2011,Facilities Management Contract Costs,Finance & Commercial Group - Information and Workplace Strategies,EC HARRIS LLP,1015740,1062.25
"Department of Business, Innovation and Skills","Department of Business, Innovation and Skills",10/01/2011,Facilities Management Contract Costs,Finance & Commercial Group - Information and Workplace Strategies,EC HARRIS LLP,1015740,7954.34
"Department of Business, Innovation and Skills","Department of Business, Innovation and Skills",10/01/2011,Facilities Management Contract Costs,Finance & Commercial Group - Information and Workplace Strategies,EC HARRIS LLP,1015740,19373.14
"Department of Business, Innovation and Skills","Department of Business, Innovation and Skills",10/01/2011,Facilities Management Contract Costs,Finance & Commercial Group - Information and Workplace Strategies,EC HARRIS LLP,1015740,40642.39
"Department of Business, Innovation and Skills","Department of Business, Innovation and Skills",10/01/2011,Facilities Management Contract Costs,Finance & Commercial Group - Information and Workplace Strategies,EC HARRIS LLP,1015740,1159.52
"Department of Business, Innovation and Skills","Department of Business, Innovation and Skills",10/01/2011,Facilities Management Contract Costs,Finance & Commercial Group - Information and Workplace Strategies,EC HARRIS LLP,1015740,5736.59
"Department of Business, Innovation and Skills","Department of Business, Innovation and Skills",10/01/2011,Facilities Management Contract Costs,Finance & Commercial Group - Information and Workplace Strategies,EC HARRIS LLP,1015740,822.22
"Department of Business, Innovation and Skills","Department of Business, Innovation and Skills",10/01/2011,Facilities Management Contract Costs,Finance & Commercial Group - Information and Workplace Strategies,EC HARRIS LLP,1015740,13431.22
"Department of Business, Innovation and Skills","Department of Business, Innovation and Skills",10/01/2011,Facilities Management Contract Costs,Finance & Commercial Group - Information and Workplace Strategies,EC HARRIS LLP,1015740,1886.26
"Department of Business, Innovation and Skills","Department of Business, Innovation and Skills",10/01/2011,Facilities Management Contract Costs,Finance & Commercial Group - Information and Workplace Strategies,EC HARRIS LLP,1015740,3204.27
"Department of Business, Innovation and Skills","Department of Business, Innovation and Skills",10/01/2011,Facilities Management Contract Costs,Finance & Commercial Group - Information and Workplace Strategies,EC HARRIS LLP,1015740,4301.27
"Department of Business, Innovation and Skills","Department of Business, Innovation and Skills",10/01/2011,Facilities Management Contract Costs,Finance & Commercial Group - Information and Workplace Strategies,EC HARRIS LLP,1015740,1159.52
"Department of Business, Innovation and Skills","Department of Business, Innovation and Skills",10/01/2011,Facilities Management Contract Costs,Finance & Commercial Group - Information and Workplace Strategies,EC HARRIS LLP,1015740,6357.24
"Department of Business, Innovation and Skills","Department of Business, Innovation and Skills",14/01/2011,Contributions (Programme),Business & Skills Group - Economic Development Directorate,ECONOMIC AND SOCIAL RESEARCH COUNCIL ESRC,1016381,84875
"Department of Business, Innovation and Skills","Department of Business, Innovation and Skills",14/01/2011,Contributions (Programme),Business & Skills Group - Economic Development Directorate,ECONOMIC AND SOCIAL RESEARCH COUNCIL ESRC,1016381,2234.04
"Department of Business, Innovation and Skills","Department of Business, Innovation and Skills",10/01/2011,Grant in Aid - Current -Other,Knowledge and Innovation Group - RESEARCH BASE,ECONOMIC AND SOCIAL RESEARCH COUNCIL ESRC,1015755,8000000
"Department of Business, Innovation and Skills","Department of Business, Innovation and Skills",21/01/2011,Accommodation Rentals (Programme),Finance & Commercial Group - Information and Workplace Strategies,EDDISONS COMMERCIAL (PROPERTY MANAGEMENT) LTD T/A EDDISONS,1016866,1658.73
"Department of Business, Innovation and Skills","Department of Business, Innovation and Skills",21/01/2011,Accommodation Rentals (Programme),Finance & Commercial Group - Information and Workplace Strategies,EDDISONS COMMERCIAL (PROPERTY MANAGEMENT) LTD T/A EDDISONS,1016869,33.45
"Department of Business, Innovation and Skills","Department of Business, Innovation and Skills",21/01/2011,Buildings Insurance (Programme),Finance & Commercial Group - Information and Workplace Strategies,EDDISONS COMMERCIAL (PROPERTY MANAGEMENT) LTD T/A EDDISONS,1016871,5845.79
"Department of Business, Innovation and Skills","Department of Business, Innovation and Skills",21/01/2011,Buildings Insurance (Programme),Finance & Commercial Group - Information and Workplace Strategies,EDDISONS COMMERCIAL (PROPERTY MANAGEMENT) LTD T/A EDDISONS,1016874,-5751.21
"Department of Business, Innovation and Skills","Department of Business, Innovation and Skills",27/01/2011,Accommodation Rentals,Finance & Commercial Group - Information and Workplace Strategies,EDDISONS COMMERCIAL (PROPERTY MANAGEMENT) LTD T/A EDDISONS,1017639,214500
"Department of Business, Innovation and Skills","Department of Business, Innovation and Skills",14/01/2011,Electricity (Programme),Finance & Commercial Group - Information and Workplace Strategies,EDF ENERGY plc,1016391,479.01
"Department of Business, Innovation and Skills","Department of Business, Innovation and Skills",17/01/2011,Electricity (Programme),Finance & Commercial Group - Information and Workplace Strategies,EDF ENERGY plc,1016397,423.24
"Department of Business, Innovation and Skills","Department of Business, Innovation and Skills",17/01/2011,Electricity (Programme),Finance & Commercial Group - Information and Workplace Strategies,EDF ENERGY plc,1016402,9341.67
"Department of Business, Innovation and Skills","Department of Business, Innovation and Skills",17/01/2011,Electricity (Programme),Finance & Commercial Group - Information and Workplace Strategies,EDF ENERGY plc,1016454,1050.85
"Department of Business, Innovation and Skills","Department of Business, Innovation and Skills",17/01/2011,Electricity (Programme),Finance & Commercial Group - Information and Workplace Strategies,EDF ENERGY plc,1016456,486.64
"Department of Business, Innovation and Skills","Department of Business, Innovation and Skills",12/01/2011,Electricity,Finance & Commercial Group - Information and Workplace Strategies,EDF ENERGY plc,1015729,8212.42
"Department of Business, Innovation and Skills","Department of Business, Innovation and Skills",12/01/2011,Electricity,Finance & Commercial Group - Information and Workplace Strategies,EDF ENERGY plc,1015730,33860.16
"Department of Business, Innovation and Skills","Department of Business, Innovation and Skills",12/01/2011,Electricity,Finance & Commercial Group - Information and Workplace Strategies,EDF ENERGY plc,1015730,0.01
"Department of Business, Innovation and Skills","Department of Business, Innovation and Skills",12/01/2011,Electricity,Finance & Commercial Group - Information and Workplace Strategies,EDF ENERGY plc,1015731,2166.02
"Department of Business, Innovation and Skills","Department of Business, Innovation and Skills",12/01/2011,Electricity,Finance & Commercial Group - Information and Workplace Strategies,EDF ENERGY plc,1015732,4839.23
"Department of Business, Innovation and Skills","Department of Business, Innovation and Skills",12/01/2011,Electricity,Finance & Commercial Group - Information and Workplace Strategies,EDF ENERGY plc,1015734,45385.89
"Department of Business, Innovation and Skills","Department of Business, Innovation and Skills",13/01/2011,Electricity,Finance & Commercial Group - Information and Workplace Strategies,EDF ENERGY plc,1015741,33905.74
"Department of Business, Innovation and Skills","Department of Business, Innovation and Skills",13/01/2011,Electricity,Finance & Commercial Group - Information and Workplace Strategies,EDF ENERGY plc,1015741,7.07
"Department of Business, Innovation and Skills","Department of Business, Innovation and Skills",13/01/2011,Electricity,Finance & Commercial Group - Information and Workplace Strategies,EDF ENERGY plc,1015741,194.3
"Department of Business, Innovation and Skills","Department of Business, Innovation and Skills",17/01/2011,Electricity,Finance & Commercial Group - Information and Workplace Strategies,EDF ENERGY plc,1016484,894.45
"Department of Business, Innovation and Skills","Department of Business, Innovation and Skills",21/01/2011,Electricity,Finance & Commercial Group - Information and Workplace Strategies,EDF ENERGY plc,1016895,53269.1
"Department of Business, Innovation and Skills","Department of Business, Innovation and Skills",26/01/2011,Other UK Travel & Subsistence,Finance & Commercial Group - Finance Group,EDF TRADING LTD,1017437,90063.8
"Department of Business, Innovation and Skills","Department of Business, Innovation and Skills",18/01/2011,Criminal Law and Prosecution Work,"Legal, People & Communications Group - Legal",EDMUND BURGE,1016386,300
"Department of Business, Innovation and Skills","Department of Business, Innovation and Skills",11/01/2011,ICT Infrastructure Specific Service,Finance & Commercial Group - Information and Workplace Strategies,EDUSERV TECHNOLOGIES LTD,1014803,13510.83
"Department of Business, Innovation and Skills","Department of Business, Innovation and Skills",07/01/2011,ICT Maintenance & Upkeep,Finance & Commercial Group - Information and Workplace Strategies,EDUSERV TECHNOLOGIES LTD,1014804,7525
"Department of Business, Innovation and Skills","Department of Business, Innovation and Skills",26/01/2011,InfoSource Desktop Information and Research Services,Finance & Commercial Group - Information and Workplace Strategies,EDUSERV TECHNOLOGIES LTD,1017425,112.5
"Department of Business, Innovation and Skills","Department of Business, Innovation and Skills",28/01/2011,ICT Infrastructure Specific Service,Finance & Commercial Group - Information and Workplace Strategies,EDUSERV TECHNOLOGIES LTD,1017742,12730.83
"Department of Business, Innovation and Skills","Department of Business, Innovation and Skills",28/01/2011,ICT Infrastructure Specific Service,Finance & Commercial Group - Information and Workplace Strategies,EDUSERV TECHNOLOGIES LTD,1017742,780
"Department of Business, Innovation and Skills","Department of Business, Innovation and Skills",27/01/2011,Criminal Law and Prosecution Work,"Legal, People & Communications Group - Legal",EDWARD KENNY,1017605,150
"Department of Business, Innovation and Skills","Department of Business, Innovation and Skills",10/01/2011,Outsourced Technical Support (Programme),Knowledge and Innovation Group - UK Space Agency,EEE COMPONENTS QUALITY AND RELIABILITY CONSULTANCY LTD,1015720,10000
"Department of Business, Innovation and Skills","Department of Business, Innovation and Skills",20/01/2011,Grants - Non Statutory - Current - Other,Market and Frameworks Group - Consumer and Competition Policy,EETSA LTD,1016771,121.26
"Department of Business, Innovation and Skills","Department of Business, Innovation and Skills",20/01/2011,Grants - Non Statutory - Current - Other,Market and Frameworks Group - Consumer and Competition Policy,EETSA LTD,1016771,54167
"Department of Business, Innovation and Skills","Department of Business, Innovation and Skills",20/01/2011,Grants - Non Statutory - Current - Other,Market and Frameworks Group - Consumer and Competition Policy,EETSA LTD,1016771,54167
"Department of Business, Innovation and Skills","Department of Business, Innovation and Skills",20/01/2011,Grants - Non Statutory - Current - Other,Market and Frameworks Group - Consumer and Competition Policy,EETSA LTD,1016771,54167
"Department of Business, Innovation and Skills","Department of Business, Innovation and Skills",31/01/2011,Cash Expenditure During the Year - EFG,Business & Skills Group - Enterprise Directorate,EFG PAYMENTS,1017976,614307.94
"Department of Business, Innovation and Skills","Department of Business, Innovation and Skills",31/01/2011,Cash Expenditure During the Year - EFG,Business & Skills Group - Enterprise Directorate,EFG PAYMENTS,1017976,141249.98
"Department of Business, Innovation and Skills","Department of Business, Innovation and Skills",31/01/2011,Cash Expenditure During the Year - EFG,Business & Skills Group - Enterprise Directorate,EFG PAYMENTS,1017976,12500.69
"Department of Business, Innovation and Skills","Department of Business, Innovation and Skills",31/01/2011,Cash Expenditure During the Year - EFG,Business & Skills Group - Enterprise Directorate,EFG PAYMENTS,1017976,453969.34
"Department of Business, Innovation and Skills","Department of Business, Innovation and Skills",31/01/2011,Cash Expenditure During the Year - EFG,Business & Skills Group - Enterprise Directorate,EFG PAYMENTS,1017976,225808.81
"Department of Business, Innovation and Skills","Department of Business, Innovation and Skills",31/01/2011,Cash Expenditure During the Year - EFG,Business & Skills Group - Enterprise Directorate,EFG PAYMENTS,1017976,302395.9
"Department of Business, Innovation and Skills","Department of Business, Innovation and Skills",31/01/2011,Cash Expenditure During the Year - EFG,Business & Skills Group - Enterprise Directorate,EFG PAYMENTS,1017976,2112036
"Department of Business, Innovation and Skills","Department of Business, Innovation and Skills",26/01/2011,Project Management Costs (Programme),Market and Frameworks Group - Employment Relations,EG WHYBREW,1017531,7078.9
"Department of Business, Innovation and Skills","Department of Business, Innovation and Skills",26/01/2011,Project Management Costs (Programme),Market and Frameworks Group - Employment Relations,EG WHYBREW,1017531,2930.5
"Department of Business, Innovation and Skills","Department of Business, Innovation and Skills",07/01/2011,ICT Maintenance & Upkeep,Finance & Commercial Group - Information and Workplace Strategies,ELAN COMPUTING LTD,1014920,8343.66
"Department of Business, Innovation and Skills","Department of Business, Innovation and Skills",17/01/2011,Recruitment Consultancy Costs,Market and Frameworks Group - Consumer and Competition Policy,ELISA HOLMES,1016450,650
"Department of Business, Innovation and Skills","Department of Business, Innovation and Skills",07/01/2011,Other Training Costs,"Legal, People & Communications Group - HRCM - Human Resources and Change Management Directorate",EMPLOYERS FORUM ON DISABILITY.,1015028,255
"Department of Business, Innovation and Skills","Department of Business, Innovation and Skills",27/01/2011,External Training,"Legal, People & Communications Group - Legal",EMPLOYMENT LAWYERS ASSOCIATION,1017623,264.38
"Department of Business, Innovation and Skills","Department of Business, Innovation and Skills",27/01/2011,External Training,"Legal, People & Communications Group - Legal",EMPLOYMENT LAWYERS ASSOCIATION,1017627,264.38
"Department of Business, Innovation and Skills","Department of Business, Innovation and Skills",10/01/2011,Grant in Aid - Current -Other,Knowledge and Innovation Group - RESEARCH BASE,ENGINEERING AND PHYSICAL SCIENCES RESEARCH COUNCIL,1015756,66000000
"Department of Business, Innovation and Skills","Department of Business, Innovation and Skills",11/01/2011,Stationery,"Legal, People & Communications Group - HRCM - Human Resources and Change Management Directorate",ENTERPRISE PLANTS LTD,1015850,6269.4
"Department of Business, Innovation and Skills","Department of Business, Innovation and Skills",11/01/2011,Stationery,"Legal, People & Communications Group - HRCM - Human Resources and Change Management Directorate",ENTERPRISE PLANTS LTD,1015850,0.02
"Department of Business, Innovation and Skills","Department of Business, Innovation and Skills",17/01/2011,Grants - Non Statutory - Current - Other,Business & Skills Group - Enterprise Directorate,ENTERPRISE UNITED KINGDOM,1016458,1000000
"Department of Business, Innovation and Skills","Department of Business, Innovation and Skills",21/01/2011,Grants - Statutory - Current - Other,Business & Skills Group - Advanced Manufacturing Industries,ENVIRONMENT AGENCY,1016929,250000
"Department of Business, Innovation and Skills","Department of Business, Innovation and Skills",21/01/2011,Grants - Statutory - Current - Other,Business & Skills Group - Advanced Manufacturing Industries,ENVIRONMENT AGENCY,1016929,250000
"Department of Business, Innovation and Skills","Department of Business, Innovation and Skills",07/01/2011,Outsourced Technical Support (Programme),Business & Skills Group - Enterprise Directorate,ENVIRONMENTAL RESOURCES MANAGEMENT LTD,1015581,10993.2
"Department of Business, Innovation and Skills","Department of Business, Innovation and Skills",06/01/2011,Electricity (Programme),Finance & Commercial Group - Information and Workplace Strategies,E-ON ENERGY LTD,1015445,73.96
"Department of Business, Innovation and Skills","Department of Business, Innovation and Skills",21/01/2011,Gas (Programme),Finance & Commercial Group - Information and Workplace Strategies,E-ON ENERGY LTD,1016859,9.32
"Department of Business, Innovation and Skills","Department of Business, Innovation and Skills",26/01/2011,Grants - Non Statutory - Current - Other,Market and Frameworks Group - Employment Relations,EQUITY,1017451,3212.13
"Department of Business, Innovation and Skills","Department of Business, Innovation and Skills",12/01/2011,Communications & Marketing Training,"Legal, People & Communications Group - Communications Directorate",ESCOTT HUNT LTD,1016120,450
"Department of Business, Innovation and Skills","Department of Business, Innovation and Skills",20/01/2011,Water (Programme),Finance & Commercial Group - Information and Workplace Strategies,ESSEX AND SUFFOLK WATER LTD,1016715,88.04
"Department of Business, Innovation and Skills","Department of Business, Innovation and Skills",10/01/2011,Criminal Law and Prosecution Work,"Legal, People & Communications Group - Legal",ESTHER HARRISON,1015747,135.13
"Department of Business, Innovation and Skills","Department of Business, Innovation and Skills",13/01/2011,Criminal Law and Prosecution Work,"Legal, People & Communications Group - Legal",ESTHER HARRISON,1015749,133.95
"Department of Business, Innovation and Skills","Department of Business, Innovation and Skills",17/01/2011,Technical Advice / Services & Support,Finance & Commercial Group - Information and Workplace Strategies,ETON ANALYTICAL LTD T/A ETON ENVIRONMENTAL SERVICES,1016515,900
"Department of Business, Innovation and Skills","Department of Business, Innovation and Skills",14/01/2011,Professional Subscriptions (Programme),Business & Skills Group - Information Economy,ETSI,1016061,132904.48
"Department of Business, Innovation and Skills","Department of Business, Innovation and Skills",10/01/2011,Grants - Statutory - Current - Abroad,Knowledge and Innovation Group - Learners,EUROPEAN UNIVERSITY INSTITUTE (EUI),1014013,65579.04
"Department of Business, Innovation and Skills","Department of Business, Innovation and Skills",11/01/2011,Economic Consultancy and Research,Business & Skills Group - Enterprise Directorate,EXPERIAN LTD,1015837,4750
"Department of Business, Innovation and Skills","Department of Business, Innovation and Skills",06/01/2011,Payments to Expotel for Hotel Costs Contract,Finance & Commercial Group - Finance Group,EXPOTEL HOTEL RESERVATIONS LTD,1015443,224.41
"Department of Business, Innovation and Skills","Department of Business, Innovation and Skills",06/01/2011,Payments to Expotel for Hotel Costs Contract,Finance & Commercial Group - Finance Group,EXPOTEL HOTEL RESERVATIONS LTD,1015443,5651.94
"Department of Business, Innovation and Skills","Department of Business, Innovation and Skills",12/01/2011,Payments to Expotel for Hotel Costs Contract,Finance & Commercial Group - Finance Group,EXPOTEL HOTEL RESERVATIONS LTD,1015965,329.63
"Department of Business, Innovation and Skills","Department of Business, Innovation and Skills",12/01/2011,Payments to Expotel for Hotel Costs Contract,Finance & Commercial Group - Finance Group,EXPOTEL HOTEL RESERVATIONS LTD,1015965,3728.05
"Department of Business, Innovation and Skills","Department of Business, Innovation and Skills",18/01/2011,Payments to Expotel for Hotel Costs Contract,Finance & Commercial Group - Finance Group,EXPOTEL HOTEL RESERVATIONS LTD,1016548,424.7
"Department of Business, Innovation and Skills","Department of Business, Innovation and Skills",18/01/2011,Payments to Expotel for Hotel Costs Contract,Finance & Commercial Group - Finance Group,EXPOTEL HOTEL RESERVATIONS LTD,1016548,-4.08
"Department of Business, Innovation and Skills","Department of Business, Innovation and Skills",18/01/2011,Payments to Expotel for Hotel Costs Contract,Finance & Commercial Group - Finance Group,EXPOTEL HOTEL RESERVATIONS LTD,1016592,649.5
"Department of Business, Innovation and Skills","Department of Business, Innovation and Skills",28/01/2011,Payments to Expotel for Hotel Costs Contract,Finance & Commercial Group - Finance Group,EXPOTEL HOTEL RESERVATIONS LTD,1017387,10426.92
"Department of Business, Innovation and Skills","Department of Business, Innovation and Skills",10/01/2011,IT Maintenance and Management Services,Business & Skills Group - Information Economy,E-Z - MEDIA LTD,1015633,106
"Department of Business, Innovation and Skills","Department of Business, Innovation and Skills",17/01/2011,Other Accommodation Charges (Programme),Finance & Commercial Group - Information and Workplace Strategies,F1 SECURITY SERVICES LTD,1016412,263.5
"Department of Business, Innovation and Skills","Department of Business, Innovation and Skills",17/01/2011,On-Line Databases,Shareholder Executive - Shareholder Executive,FACTIVA LTD,1016430,3810
"Department of Business, Innovation and Skills","Department of Business, Innovation and Skills",10/01/2011,Grants - Non Statutory - Current - Other,Knowledge and Innovation Group - Learners,FAMILY ACTION,1015702,6000
"Department of Business, Innovation and Skills","Department of Business, Innovation and Skills",10/01/2011,Criminal Law and Prosecution Work,"Legal, People & Communications Group - Legal",FAYE MELLOR,1015745,135.13
"Department of Business, Innovation and Skills","Department of Business, Innovation and Skills",31/01/2011,Translation Services,Finance & Commercial Group - Finance Group,FCO SERVICES,1017875,477.4
"Department of Business, Innovation and Skills","Department of Business, Innovation and Skills",21/01/2011,FCO/COI Dispatches,Finance & Commercial Group - Information and Workplace Strategies,FCO SERVICES,1016801,1745.07
"Department of Business, Innovation and Skills","Department of Business, Innovation and Skills",17/01/2011,Criminal Law and Prosecution Work,"Legal, People & Communications Group - Legal",FCO SERVICES,1016465,125
"Department of Business, Innovation and Skills","Department of Business, Innovation and Skills",14/01/2011,External Legal Advice and Services,Finance & Commercial Group - Information and Workplace Strategies,FIELD FISHER WATERHOUSE,1016327,8409.75
"Department of Business, Innovation and Skills","Department of Business, Innovation and Skills",06/01/2011,SL DS Utilisation,Knowledge and Innovation Group - Learners,FINANCE FOR HIGHER EDUCATION,1015517,104219.29
"Department of Business, Innovation and Skills","Department of Business, Innovation and Skills",14/01/2011,Criminal Law and Prosecution Work,"Legal, People & Communications Group - Legal",FIONA SHIPLEY TRANSCRIPTION LTD,1016294,198
"Department of Business, Innovation and Skills","Department of Business, Innovation and Skills",19/01/2011,Criminal Law and Prosecution Work,"Legal, People & Communications Group - Legal",FIONA SHIPLEY TRANSCRIPTION LTD,1016596,73.38
"Department of Business, Innovation and Skills","Department of Business, Innovation and Skills",27/01/2011,Criminal Law and Prosecution Work,"Legal, People & Communications Group - Legal",FIONA SHIPLEY TRANSCRIPTION LTD,1017547,247.38
"Department of Business, Innovation and Skills","Department of Business, Innovation and Skills",18/01/2011,Standard Desktop Services (PFI),Finance & Commercial Group - Information and Workplace Strategies,FIVIUM LTD,1016598,240.58
"Department of Business, Innovation and Skills","Department of Business, Innovation and Skills",17/01/2011,Leased Buildings - Clearing,Finance & Commercial Group - Information and Workplace Strategies,FJ ELVIN,1016502,3642.5
"Department of Business, Innovation and Skills","Department of Business, Innovation and Skills",17/01/2011,Leased Buildings - Clearing,Finance & Commercial Group - Information and Workplace Strategies,FJ ELVIN,1016502,2720.75
"Department of Business, Innovation and Skills","Department of Business, Innovation and Skills",21/01/2011,Hospitality - UK,Business & Skills Group - Economic Development Directorate,FOREIGN AND COMMONWEALTH OFFICE (FCO),1017003,551.05
"Department of Business, Innovation and Skills","Department of Business, Innovation and Skills",06/01/2011,Other Overseas Travel & Subsistence,Knowledge and Innovation Group - GOVERNMENT OFFICE FOR SCIENCE,FOREIGN AND COMMONWEALTH OFFICE (FCO),1013874,202.19
"Department of Business, Innovation and Skills","Department of Business, Innovation and Skills",06/01/2011,Hotels (Programme),Knowledge and Innovation Group - RESEARCH BASE,FOREIGN AND COMMONWEALTH OFFICE (FCO),1013851,196.27
"Department of Business, Innovation and Skills","Department of Business, Innovation and Skills",06/01/2011,Hotels (Programme),Knowledge and Innovation Group - RESEARCH BASE,FOREIGN AND COMMONWEALTH OFFICE (FCO),1013852,196.27
"Department of Business, Innovation and Skills","Department of Business, Innovation and Skills",06/01/2011,Other Overseas T&S (Programme),Knowledge and Innovation Group - RESEARCH BASE,FOREIGN AND COMMONWEALTH OFFICE (FCO),1013865,60.98
"Department of Business, Innovation and Skills","Department of Business, Innovation and Skills",06/01/2011,Other Overseas T&S (Programme),Knowledge and Innovation Group - RESEARCH BASE,FOREIGN AND COMMONWEALTH OFFICE (FCO),1013866,18.76
"Department of Business, Innovation and Skills","Department of Business, Innovation and Skills",06/01/2011,Rail Fares (Programme),Knowledge and Innovation Group - RESEARCH BASE,FOREIGN AND COMMONWEALTH OFFICE (FCO),1013867,282.57
"Department of Business, Innovation and Skills","Department of Business, Innovation and Skills",06/01/2011,Air Fares  - Overseas (Programme),Knowledge and Innovation Group - RESEARCH BASE,FOREIGN AND COMMONWEALTH OFFICE (FCO),1013867,3377.92
"Department of Business, Innovation and Skills","Department of Business, Innovation and Skills",06/01/2011,Air Fares  - Overseas (Programme),Knowledge and Innovation Group - RESEARCH BASE,FOREIGN AND COMMONWEALTH OFFICE (FCO),1013868,84.83
"Department of Business, Innovation and Skills","Department of Business, Innovation and Skills",06/01/2011,Air Fares  - Overseas (Programme),Knowledge and Innovation Group - RESEARCH BASE,FOREIGN AND COMMONWEALTH OFFICE (FCO),1013869,110.02
"Department of Business, Innovation and Skills","Department of Business, Innovation and Skills",06/01/2011,Air Fares  - Overseas (Programme),Knowledge and Innovation Group - RESEARCH BASE,FOREIGN AND COMMONWEALTH OFFICE (FCO),1013870,137.39
"Department of Business, Innovation and Skills","Department of Business, Innovation and Skills",06/01/2011,Air Fares  - Overseas (Programme),Knowledge and Innovation Group - RESEARCH BASE,FOREIGN AND COMMONWEALTH OFFICE (FCO),1013871,162.99
"Department of Business, Innovation and Skills","Department of Business, Innovation and Skills",06/01/2011,Air Fares  - Overseas (Programme),Knowledge and Innovation Group - RESEARCH BASE,FOREIGN AND COMMONWEALTH OFFICE (FCO),1013872,670.81
"Department of Business, Innovation and Skills","Department of Business, Innovation and Skills",06/01/2011,Entertaining Overseas (Programme),Knowledge and Innovation Group - RESEARCH BASE,FOREIGN AND COMMONWEALTH OFFICE (FCO),1013873,261.6
"Department of Business, Innovation and Skills","Department of Business, Innovation and Skills",06/01/2011,Other Overseas T&S (Programme),Knowledge and Innovation Group - RESEARCH BASE,FOREIGN AND COMMONWEALTH OFFICE (FCO),1013875,8.27
"Department of Business, Innovation and Skills","Department of Business, Innovation and Skills",06/01/2011,Grants - Statutory - Current - Other,Knowledge and Innovation Group - RESEARCH BASE,FOREIGN AND COMMONWEALTH OFFICE (FCO),1013876,1000
"Department of Business, Innovation and Skills","Department of Business, Innovation and Skills",06/01/2011,Hotels- Overseas  (Programme),Knowledge and Innovation Group - RESEARCH BASE,FOREIGN AND COMMONWEALTH OFFICE (FCO),1013877,1683.68
"Department of Business, Innovation and Skills","Department of Business, Innovation and Skills",06/01/2011,Air Fares  - Overseas (Programme),Knowledge and Innovation Group - RESEARCH BASE,FOREIGN AND COMMONWEALTH OFFICE (FCO),1013878,10015
"Department of Business, Innovation and Skills","Department of Business, Innovation and Skills",06/01/2011,Air Fares  - Overseas (Programme),Knowledge and Innovation Group - RESEARCH BASE,FOREIGN AND COMMONWEALTH OFFICE (FCO),1013879,388.36
"Department of Business, Innovation and Skills","Department of Business, Innovation and Skills",06/01/2011,Air Fares  - Overseas (Programme),Knowledge and Innovation Group - RESEARCH BASE,FOREIGN AND COMMONWEALTH OFFICE (FCO),1013880,1421.01
"Department of Business, Innovation and Skills","Department of Business, Innovation and Skills",06/01/2011,Air Fares  - Overseas (Programme),Knowledge and Innovation Group - RESEARCH BASE,FOREIGN AND COMMONWEALTH OFFICE (FCO),1013881,169.9
"Department of Business, Innovation and Skills","Department of Business, Innovation and Skills",06/01/2011,Air Fares  - Overseas (Programme),Knowledge and Innovation Group - RESEARCH BASE,FOREIGN AND COMMONWEALTH OFFICE (FCO),10275024,-109.92
"Department of Business, Innovation and Skills","Department of Business, Innovation and Skills",17/01/2011,External Legal Advice and Services,Shareholder Executive - Shareholder Executive,FRESHFIELDS BRUCKHAUS DERINGER,1016352,58586.45
